Department family,Entity,Date,Expense type,Expense area,Supplier,Transaction number,Amount
Home Office,Home Office,01/08/2010,Grant,CPG - Crime & Policing Group,HALTON BOROUGH COUNCIL (G),446202,"34,242.43"
Home Office,Home Office,01/08/2010,Grant,CPG - Crime & Policing Group,BEXLEY DAT (G),446202,"49,449.78"
Home Office,Home Office,01/08/2010,Grant,CPG - Crime & Policing Group,BLACKBURN WITH DARWEN BOROUGH COUN,446202,"70,447.34"
Home Office,Home Office,01/08/2010,Grant,CPG - Crime & Policing Group,PORTSMOUTH CITY COUNCIL 2 (G),446202,"71,729.54"
Home Office,Home Office,01/08/2010,Grant,CPG - Crime & Policing Group,LONDON BOROUGH OF BARNET 1 (G),446202,"76,183.61"
Home Office,Home Office,01/08/2010,Grant,CPG - Crime & Policing Group,SOUTHAMPTON CITY COUNCIL 1 (G),446202,"77,301.26"
Home Office,Home Office,01/08/2010,Grant,CPG - Crime & Policing Group,LEICESTERSHIRE COUNTY COUNCIL 1 (G,446202,"108,000.50"
Home Office,Home Office,01/08/2010,Grant,CPG - Crime & Policing Group,SURREY PCT (G),446202,"140,614.80"
Home Office,Home Office,01/08/2010,Grant,CPG - Crime & Policing Group,NORTH LINCOLNSHIRE PCT (G),446202,"163,249.35"
Home Office,Home Office,01/08/2010,Grant,CPG - Crime & Policing Group,SOUTH SEFTON PCT (G),446202,"167,424.25"
Home Office,Home Office,01/08/2010,Grant,CPG - Crime & Policing Group,NORTH EAST LINCOLNSHIRE PCT(G),446202,"227,149.85"
Home Office,Home Office,01/08/2010,Grant,CPG - Crime & Policing Group,SANDWELL PRIMARY CARE TRUST,446202,"232,756.23"
Home Office,Home Office,01/08/2010,Grant,CPG - Crime & Policing Group,CAMDEN PRIMARY CARE TRUST (G),446202,"282,587.38"
Home Office,Home Office,01/08/2010,Grant,CPG - Crime & Policing Group,LONDON BOROUGH OF LEWISHAM 1 (G),446202,"288,487.83"
Home Office,Home Office,01/08/2010,Grant,CPG - Crime & Policing Group,ISLINGTON PRIMARY CARE TRUST PCT (,446202,"320,560.81"
Home Office,Home Office,01/08/2010,Grant,CPG - Crime & Policing Group,KINGSTON UPON HULL CITY COUNCIL 2,446202,"360,837.57"
Home Office,Home Office,01/08/2010,Grant,CPG - Crime & Policing Group,LAMBETH PCT (G),446202,"417,141.54"
Home Office,Home Office,01/08/2010,Grant,CPG - Crime & Policing Group,NOTTINGHAMSHIRE COUNTY TEACHING PC,446202,"525,160.08"
Home Office,Home Office,02/08/2010,Grant,CPG - Crime & Policing Group,CHAMBERLAIN OF LONDON (G),288080,"1,938,392.00"
Home Office,Home Office,02/08/2010,Grant,CPG - Crime & Policing Group,CUMBRIA POLICE AUTHORITY 1 (G),288080,"2,922,288.00"
Home Office,Home Office,02/08/2010,Grant,CPG - Crime & Policing Group,WARWICKSHIRE POLICE AUTHORITY 1 (G,288080,"2,927,456.00"
Home Office,Home Office,02/08/2010,Grant,CPG - Crime & Policing Group,GLOUCESTERSHIRE POLICE AUTHORITY (,288080,"3,146,923.00"
Home Office,Home Office,02/08/2010,Grant,CPG - Crime & Policing Group,WILTSHIRE CONSTABULARY (G),288080,"3,504,353.00"
Home Office,Home Office,02/08/2010,Grant,CPG - Crime & Policing Group,DORSET POLICE AUTHORITY 1 (G),288080,"3,623,936.00"
Home Office,Home Office,02/08/2010,Grant,CPG - Crime & Policing Group,LINCOLNSHIRE POLICE AUTHORITY 1 (G,288080,"3,669,244.00"
Home Office,Home Office,02/08/2010,Grant,CPG - Crime & Policing Group,BEDFORDSHIRE POLICE AUTHORITY 1 (G,288080,"3,715,469.00"
Home Office,Home Office,02/08/2010,Grant,CPG - Crime & Policing Group,SUFFOLK POLICE AUTHORITY (G),288080,"3,791,747.00"
Home Office,Home Office,02/08/2010,Grant,CPG - Crime & Policing Group,NORTHAMPTONSHIRE POLICE 1 (G),288080,"3,918,228.00"
Home Office,Home Office,02/08/2010,Grant,CPG - Crime & Policing Group,DURHAM POLICE AUTHORITY 1 (G),288080,"3,979,534.00"
Home Office,Home Office,02/08/2010,Grant,CPG - Crime & Policing Group,NORTH YORKSHIRE POLICE AUTHORITY (,288080,"4,094,298.00"
Home Office,Home Office,02/08/2010,Grant,CPG - Crime & Policing Group,CLEVELAND POLICE AUTHORITY 1 (G),288080,"4,302,280.00"
Home Office,Home Office,02/08/2010,Grant,CPG - Crime & Policing Group,HUMBERSIDE POLICE AUTHORITY 1 (G),288080,"6,059,392.00"
Home Office,Home Office,02/08/2010,Grant,CPG - Crime & Policing Group,STAFFORDSHIRE POLICE AUTHORITY (G),288080,"6,098,226.00"
Home Office,Home Office,02/08/2010,Grant,CPG - Crime & Policing Group,NEW WEST MERCIA POLICE AUTHORITY (,288080,"6,225,056.00"
Home Office,Home Office,02/08/2010,Grant,CPG - Crime & Policing Group,HERTFORDSHIRE POLICE AUTHORITY 1 (,288080,"6,772,698.00"
Home Office,Home Office,02/08/2010,Grant,CPG - Crime & Policing Group,NOTTINGHAMSHIRE POLICE AUTHORITY 2,288080,"6,889,987.00"
Home Office,Home Office,02/08/2010,Grant,CPG - Crime & Policing Group,CAMBRIDGESHIRE POLICE AUTHORITY 1,288080,"4,405,973.00"
Home Office,Home Office,02/08/2010,Grant,CPG - Crime & Policing Group,NORFOLK POLICE AUTHORITY 1 (G),288080,"4,633,213.00"
Home Office,Home Office,02/08/2010,Grant,CPG - Crime & Policing Group,DERBYSHIRE POLICE AUTHORITY 1 (G),288080,"5,801,997.00"
Home Office,Home Office,02/08/2010,Grant,CPG - Crime & Policing Group,CHESHIRE POLICE AUTHORITY 2 (G),288080,"5,824,450.00"
Home Office,Home Office,02/08/2010,Grant,CPG - Crime & Policing Group,LEICESTERSHIRE POLICE AUTHORITY (G,288080,"5,874,816.00"
Home Office,Home Office,02/08/2010,Grant,CPG - Crime & Policing Group,SURREY POLICE AUTHORITY 1 (G),288080,"5,961,722.00"
Home Office,Home Office,02/08/2010,Grant,CPG - Crime & Policing Group,CHAMBERLAIN OF LONDON (G),411374,"252,418.00"
Home Office,Home Office,02/08/2010,Grant,CPG - Crime & Policing Group,CUMBRIA POLICE AUTHORITY 1 (G),411374,"253,856.00"
Home Office,Home Office,02/08/2010,Grant,CPG - Crime & Policing Group,GLOUCESTERSHIRE POLICE AUTHORITY (,411374,"264,505.00"
Home Office,Home Office,02/08/2010,Grant,CPG - Crime & Policing Group,SUSSEX POLICE AUTHORITY 1 (G),288080,"8,965,956.00"
Home Office,Home Office,02/08/2010,Grant,CPG - Crime & Policing Group,SOUTH YORKSHIRE POLICE AUTHORITY 1,288080,"9,185,279.00"
Home Office,Home Office,02/08/2010,Grant,CPG - Crime & Policing Group,AVON & SOMERSET POLICE AUTHORITY 1,288080,"9,676,286.00"
Home Office,Home Office,02/08/2010,Grant,CPG - Crime & Policing Group,LANCASHIRE POLICE AUTHORITY 1 (G),288080,"9,734,716.00"
Home Office,Home Office,02/08/2010,Grant,CPG - Crime & Policing Group,DEVON & CORNWALL POLICE AUTHORITY,288080,"9,750,342.00"
Home Office,Home Office,02/08/2010,Grant,CPG - Crime & Policing Group,NORTHUMBRIA POLICE (G),288080,"9,784,854.00"
Home Office,Home Office,02/08/2010,Grant,CPG - Crime & Policing Group,ESSEX POLICE AUTHORITY (G),288080,"9,789,816.00"
Home Office,Home Office,02/08/2010,Grant,CPG - Crime & Policing Group,KENT POLICE AUTHORITY 1 (G),288080,"10,285,019.00"
Home Office,Home Office,02/08/2010,Grant,CPG - Crime & Policing Group,HAMPSHIRE POLICE AUTHORITY 1 (G),288080,"10,892,409.00"
Home Office,Home Office,02/08/2010,Grant,CPG - Crime & Policing Group,MERSEYSIDE POLICE AUTHORITY 1 (G),288080,"11,847,034.00"
Home Office,Home Office,02/08/2010,Grant,CPG - Crime & Policing Group,THAMES VALLEY POLICE AUTHORITY 1 (,288080,"13,080,226.00"
Home Office,Home Office,02/08/2010,Grant,CPG - Crime & Policing Group,WEST YORKSHIRE POLICE (G),288080,"16,166,659.00"
Home Office,Home Office,02/08/2010,Grant,CPG - Crime & Policing Group,GREATER MANCHESTER POLICE AUTHORIT,288080,"21,102,918.00"
Home Office,Home Office,02/08/2010,Grant,CPG - Crime & Policing Group,WEST MIDLANDS POLICE AUTHORITY 1 (,288080,"23,113,683.00"
Home Office,Home Office,02/08/2010,Grant,CPG - Crime & Policing Group,GREATER LONDON AUTHORITY (G),288080,"97,456,462.00"
Home Office,Home Office,02/08/2010,Grant,CPG - Crime & Policing Group,DYFED POWYS POLICE AUTHORITY 1 (G),288080,"2,934,971.00"
Home Office,Home Office,02/08/2010,Grant,CPG - Crime & Policing Group,NORTH WALES POLICE AUTHORITY (G),288080,"4,044,936.00"
Home Office,Home Office,02/08/2010,Grant,CPG - Crime & Policing Group,GWENT POLICE AUTHORITY 1 (G),288080,"4,051,297.00"
Home Office,Home Office,02/08/2010,Grant,CPG - Crime & Policing Group,SOUTH WALES POLICE AUTHORITY 1 (G),288080,"8,789,439.00"
Home Office,Home Office,02/08/2010,Grant,CPG - Crime & Policing Group,INDEPENDENT POLICE COMPLAINTS COMI,439788,"2,500,000.00"
Home Office,Home Office,02/08/2010,Grant,CPG - Crime & Policing Group,SOCA (G),438434,"27,000,000.00"
Home Office,Home Office,02/08/2010,Grant,CPG - Crime & Policing Group,LINCOLNSHIRE POLICE AUTHORITY 1 (G,411374,"274,875.00"
Home Office,Home Office,02/08/2010,Grant,CPG - Crime & Policing Group,WILTSHIRE CONSTABULARY (G),411374,"285,810.00"
Home Office,Home Office,02/08/2010,Grant,CPG - Crime & Policing Group,DORSET POLICE AUTHORITY 1 (G),411374,"290,735.00"
Home Office,Home Office,02/08/2010,Grant,CPG - Crime & Policing Group,BEDFORDSHIRE POLICE AUTHORITY 1 (G,411374,"294,998.00"
Home Office,Home Office,02/08/2010,Grant,CPG - Crime & Policing Group,SUFFOLK POLICE AUTHORITY (G),411374,"309,332.00"
Home Office,Home Office,02/08/2010,Grant,CPG - Crime & Policing Group,NORTHAMPTONSHIRE POLICE 1 (G),411374,"313,693.00"
Home Office,Home Office,02/08/2010,Grant,CPG - Crime & Policing Group,NORTH YORKSHIRE POLICE AUTHORITY (,411374,"333,518.00"
Home Office,Home Office,02/08/2010,Grant,CPG - Crime & Policing Group,DURHAM POLICE AUTHORITY 1 (G),411374,"351,097.00"
Home Office,Home Office,02/08/2010,Grant,CPG - Crime & Policing Group,WARWICKSHIRE POLICE AUTHORITY 1 (G,411374,"358,994.00"
Home Office,Home Office,02/08/2010,Grant,CPG - Crime & Policing Group,CLEVELAND POLICE AUTHORITY 1 (G),411374,"360,644.00"
Home Office,Home Office,02/08/2010,Grant,CPG - Crime & Policing Group,CAMBRIDGESHIRE POLICE AUTHORITY 1,411374,"362,113.00"
Home Office,Home Office,02/08/2010,Grant,CPG - Crime & Policing Group,NORFOLK POLICE AUTHORITY 1 (G),411374,"383,844.00"
Home Office,Home Office,02/08/2010,Grant,CPG - Crime & Policing Group,DERBYSHIRE POLICE AUTHORITY 1 (G),411374,"458,212.00"
Home Office,Home Office,02/08/2010,Grant,CPG - Crime & Policing Group,STAFFORDSHIRE POLICE AUTHORITY (G),411374,"475,954.00"
Home Office,Home Office,02/08/2010,Grant,CPG - Crime & Policing Group,LEICESTERSHIRE POLICE AUTHORITY (G,411374,"476,698.00"
Home Office,Home Office,02/08/2010,Grant,CPG - Crime & Policing Group,HUMBERSIDE POLICE AUTHORITY 1 (G),411374,"488,564.00"
Home Office,Home Office,02/08/2010,Grant,CPG - Crime & Policing Group,CHESHIRE POLICE AUTHORITY 2 (G),411374,"499,467.00"
Home Office,Home Office,02/08/2010,Grant,CPG - Crime & Policing Group,NEW WEST MERCIA POLICE AUTHORITY (,411374,"513,407.00"
Home Office,Home Office,02/08/2010,Grant,CPG - Crime & Policing Group,HERTFORDSHIRE POLICE AUTHORITY 1 (,411374,"514,821.00"
Home Office,Home Office,02/08/2010,Grant,CPG - Crime & Policing Group,SURREY POLICE AUTHORITY 1 (G),411374,"521,168.00"
Home Office,Home Office,02/08/2010,Grant,CPG - Crime & Policing Group,NOTTINGHAMSHIRE POLICE AUTHORITY 2,411374,"539,803.00"
Home Office,Home Office,02/08/2010,Grant,CPG - Crime & Policing Group,SUSSEX POLICE AUTHORITY 1 (G),411374,"707,985.00"
Home Office,Home Office,02/08/2010,Grant,CPG - Crime & Policing Group,ESSEX POLICE AUTHORITY (G),411374,"731,856.00"
Home Office,Home Office,02/08/2010,Grant,CPG - Crime & Policing Group,AVON & SOMERSET POLICE AUTHORITY 1,411374,"738,110.00"
Home Office,Home Office,02/08/2010,Grant,CPG - Crime & Policing Group,SOUTH YORKSHIRE POLICE AUTHORITY 1,411374,"744,427.00"
Home Office,Home Office,02/08/2010,Grant,CPG - Crime & Policing Group,DEVON & CORNWALL POLICE AUTHORITY,411374,"770,730.00"
Home Office,Home Office,02/08/2010,Grant,CPG - Crime & Policing Group,LANCASHIRE POLICE AUTHORITY 1 (G),411374,"788,433.00"
Home Office,Home Office,02/08/2010,Grant,CPG - Crime & Policing Group,KENT POLICE AUTHORITY 1 (G),411374,"800,229.00"
Home Office,Home Office,02/08/2010,Grant,CPG - Crime & Policing Group,HAMPSHIRE POLICE AUTHORITY 1 (G),411374,"878,346.00"
Home Office,Home Office,02/08/2010,Grant,CPG - Crime & Policing Group,NORTHUMBRIA POLICE (G),411374,"929,233.00"
Home Office,Home Office,02/08/2010,Grant,CPG - Crime & Policing Group,MERSEYSIDE POLICE AUTHORITY 1 (G),411374,"947,183.00"
Home Office,Home Office,02/08/2010,Grant,CPG - Crime & Policing Group,THAMES VALLEY POLICE AUTHORITY 1 (,411374,"1,057,328.00"
Home Office,Home Office,02/08/2010,Grant,CPG - Crime & Policing Group,WEST YORKSHIRE POLICE (G),411374,"1,267,495.00"
Home Office,Home Office,02/08/2010,Grant,CPG - Crime & Policing Group,GREATER MANCHESTER POLICE AUTHORIT,411374,"1,671,474.00"
Home Office,Home Office,02/08/2010,Grant,CPG - Crime & Policing Group,WEST MIDLANDS POLICE AUTHORITY 1 (,411374,"1,771,139.00"
Home Office,Home Office,02/08/2010,Grant,CPG - Crime & Policing Group,GREATER LONDON AUTHORITY (G),411374,"8,798,553.00"
Home Office,Home Office,02/08/2010,Grant,CPG - Crime & Policing Group,DYFED POWYS POLICE AUTHORITY 1 (G),411374,"227,608.00"
Home Office,Home Office,02/08/2010,Grant,CPG - Crime & Policing Group,GWENT POLICE AUTHORITY 1 (G),411374,"311,914.00"
Home Office,Home Office,02/08/2010,Grant,CPG - Crime & Policing Group,NORTH WALES POLICE AUTHORITY (G),411374,"339,204.00"
Home Office,Home Office,02/08/2010,Grant,CPG - Crime & Policing Group,SOUTH WALES POLICE AUTHORITY 1 (G),411374,"678,392.00"
Home Office,Home Office,03/08/2010,Grant,CPG - Crime & Policing Group,COMMUNITIES & LOCAL GOVERNMENT (G),325574-6,"5,095,577.58"
Home Office,Home Office,03/08/2010,Grant,CPG - Crime & Policing Group,COMMUNITIES & LOCAL GOVERNMENT (G),325574-28,"1,282,696.92"
Home Office,Home Office,03/08/2010,Grant,CPG - Crime & Policing Group,COMMUNITIES & LOCAL GOVERNMENT (G),325574-17,"58,666.67"
Home Office,Home Office,03/08/2010,Grant,CPG - Crime & Policing Group,SERIOUS FRAUD OFFICE (G),458086,"430,000.00"
Home Office,Home Office,03/08/2010,IT & Telecommunications.IT & Telecommunications - PROG,CPG - Crime & Policing Group,CABLE & WIRELESS,1747361,"950,575.00"
Home Office,Home Office,03/08/2010,"Professional & Admin Services.Corporate, Business IT Service",CPG - Crime & Policing Group,STERIA UK,1776999,"42,311.75"
Home Office,Home Office,04/08/2010,Professional & Admin Services.Consultancy - Advice - PROG,CPG - Crime & Policing Group,SHEFFIELD HALLAM UNIVERSITY,1722359,"174,626.00"
Home Office,Home Office,04/08/2010,Storage & Mail Services,CPG - Crime & Policing Group,COI COMMUNICATIONS,727552,"104,869.99"
Home Office,Home Office,05/08/2010,Grant,CPG - Crime & Policing Group,VICTIM SUPPORT HAMPSHIRE & ISLE OF,460042,"40,000.00"
Home Office,Home Office,05/08/2010,Grant,CPG - Crime & Policing Group,DESIGN COUNCIL (G),434068-4,"41,666.00"
Home Office,Home Office,05/08/2010,Grant,CPG - Crime & Policing Group,ISA (G),460180,"743,490.00"
Home Office,Home Office,05/08/2010,Grant,CPG - Crime & Policing Group,GREATER LONDON AUTHORITY (G),420002,"7,700,000.00"
Home Office,Home Office,05/08/2010,"IT, Broadcasting & Telecomms.IT Run Cost � Info Support",CPG - Crime & Policing Group,NATIONAL TREATMENT AGENCY FOR SUBSTANCE MISUSE,1778073,"53,046.99"
Home Office,Home Office,06/08/2010,Grant,CPG - Crime & Policing Group,THAMES VALLEY POLICE (G),460436,"30,000.00"
Home Office,Home Office,06/08/2010,Grant,CPG - Crime & Policing Group,HAMPSHIRE COUNTY COUNCIL 1 (G),460436,"35,000.00"
Home Office,Home Office,06/08/2010,Grant,CPG - Crime & Policing Group,WELSH ASSEMBLY GOVERNMENT (G),454036,"2,987,058.50"
Home Office,Home Office,06/08/2010,"IT, Broadcasting & Telecomms.IT Run Costs other -Prog",CPG - Crime & Policing Group,ALTIUS CONSULTING LTD,1736584,"43,334.00"
Home Office,Home Office,06/08/2010,"IT, Broadcasting & Telecomms.IT Run Costs other -Prog",CPG - Crime & Policing Group,ALTIUS CONSULTING LTD,1744109,"48,786.00"
Home Office,Home Office,09/08/2010,Grant,CPG - Crime & Policing Group,BIRMINGHAM AND SOLIHULL WOMEN'S AI,461218,"40,000.00"
Home Office,Home Office,09/08/2010,Grant,CPG - Crime & Policing Group,SWINDON DRUG AND ALCOHOL TEAM (G),462900,"65,313.00"
Home Office,Home Office,09/08/2010,Grant,CPG - Crime & Policing Group,NORTHAMPTONSHIRE DRUG AND ALCOHOL,462900,"97,373.25"
Home Office,Home Office,09/08/2010,Grant,CPG - Crime & Policing Group,LEICESTER DRUG AND ALCOHOL ACTION,462900,"117,577.50"
Home Office,Home Office,09/08/2010,Grant,CPG - Crime & Policing Group,CALDERDALE WOMENS CENTRE (G),462944,"39,000.00"
Home Office,Home Office,10/08/2010,OGD RFT,CPG - Crime & Policing Group,TREASURY SOLICITOR CLIENT MONIES,COSTS/LT8/0025A/CCC,"67,800.00"
Home Office,Home Office,11/08/2010,Grant,CPG - Crime & Policing Group,CAMBRIDGE CITY COUNCIL (G),463160,"48,000.00"
Home Office,Home Office,11/08/2010,"IT, Broadcasting & Telecomms.IT Run Costs other -Prog",CPG - Crime & Policing Group,ALTIUS CONSULTING LTD,1781751,"32,179.17"
Home Office,Home Office,12/08/2010,Grant,CPG - Crime & Policing Group,PNB STAFF SIDE (G),466308,"32,398.13"
Home Office,Home Office,12/08/2010,Grant,CPG - Crime & Policing Group,POLICE FEDERATION OF ENGLAND & WAL,466308,"51,270.48"
Home Office,Home Office,12/08/2010,Grant,CPG - Crime & Policing Group,PNB OFFICIAL SIDE SECRETARIAL (G),466308,"78,930.76"
Home Office,Home Office,12/08/2010,Grant,CPG - Crime & Policing Group,SUPERINTENDENTS ASSOCIATION (G),466308,"171,075.05"
Home Office,Home Office,13/08/2010,Grant,CPG - Crime & Policing Group,BEDFORDSHIRE POLICE AUTHORITY 1 (G,467094,"500,000.00"
Home Office,Home Office,13/08/2010,Grant,CPG - Crime & Policing Group,ISLE OF WIGHT COUNCIL 1 (G),468010,"30,000.00"
Home Office,Home Office,13/08/2010,Grant,CPG - Crime & Policing Group,DEVON & CORNWALL CONSTABULARY (G),467168,"35,000.00"
Home Office,Home Office,13/08/2010,Grant,CPG - Crime & Policing Group,HAMPSHIRE POLICE AUTHORITY 1 (G),467168,"47,500.00"
Home Office,Home Office,13/08/2010,Grant,CPG - Crime & Policing Group,WARRINGTON BOROUGH COUNCIL (G),467966,"36,191.85"
Home Office,Home Office,13/08/2010,Grant,CPG - Crime & Policing Group,LONDON BOROUGH HAVERING (G),467966,"43,839.62"
Home Office,Home Office,13/08/2010,Grant,CPG - Crime & Policing Group,HILLINGDON PRIMARY CARE TRUST (G),467966,"54,511.08"
Home Office,Home Office,13/08/2010,Grant,CPG - Crime & Policing Group,BURY MBC (G),467966,"119,663.22"
Home Office,Home Office,13/08/2010,Grant,CPG - Crime & Policing Group,BIRKENHEAD & WALLASEY PCT (G),467966,"133,310.10"
Home Office,Home Office,13/08/2010,Grant,CPG - Crime & Policing Group,CHESTERFIELD PCT (G),467966,"152,910.00"
Home Office,Home Office,13/08/2010,Grant,CPG - Crime & Policing Group,CROYDON PCT (G),467966,"227,817.22"
Home Office,Home Office,13/08/2010,Grant,CPG - Crime & Policing Group,EALING PRIMARY CARE TRUST PCT (G),467966,"250,904.40"
Home Office,Home Office,13/08/2010,Grant,CPG - Crime & Policing Group,BRENT PRIMARY CARE TRUST (G),467966,"266,962.16"
Home Office,Home Office,13/08/2010,Grant,CPG - Crime & Policing Group,HEART OF BIRMINGHAM TEACHING PCT (,467966,"1,341,636.89"
Home Office,Home Office,13/08/2010,Storage & Mail Services.Messenger & Reception Services,CPG - Crime & Policing Group,CONCATENO UK LIMITED,1778141,"214,825.25"
Home Office,Home Office,13/08/2010,"Transport, Storage & Mail Serv.Rail Passenger Transport- PROG",CPG - Crime & Policing Group,ESSEX POLICE AUTHORITY,1785430,"26,388.67"
Home Office,Home Office,14/08/2010,Grant,CPG - Crime & Policing Group,CLEVELAND POLICE AUTHORITY (G),465048,"170,299.50"
Home Office,Home Office,16/08/2010,Grant,CPG - Crime & Policing Group,CUMBRIA PRIMARY CARE TRUST (G),468032,"66,847.50"
Home Office,Home Office,16/08/2010,Grant,CPG - Crime & Policing Group,CITY OF STOKE ON TRENT (G),468032,"101,495.75"
Home Office,Home Office,16/08/2010,Grant,CPG - Crime & Policing Group,SERIOUS FRAUD OFFICE (G),458088,"309,000.00"
Home Office,Home Office,17/08/2010,"Science, Technical & Research.Social Research",CPG - Crime & Policing Group,NATIONAL CENTRE FOR SOCIAL RESEARCH,1787214,"36,734.00"
Home Office,Home Office,17/08/2010,"Science, Technical & Research.Social Research",CPG - Crime & Policing Group,TNS-BMRB,1769489,"447,552.02"
Home Office,Home Office,17/08/2010,"Transport, Storage & Mail Serv.Rail Passenger Transport- PROG",CPG - Crime & Policing Group,SURREY POLICE AUTHORITY,1787981,"141,156.33"
Home Office,Home Office,18/08/2010,Professional & Admin Services,CPG - Crime & Policing Group,COI COMMUNICATIONS,727829,"29,076.35"
Home Office,Home Office,19/08/2010,"Building, Construction Service.Building ConstructionServ-PROG",CPG - Crime & Policing Group,"KELLOGG, BROWN AND ROOT LTD",1789284,"37,183.42"
Home Office,Home Office,19/08/2010,"Building, Construction Service.Building ConstructionServ-PROG",CPG - Crime & Policing Group,"KELLOGG, BROWN AND ROOT LTD",1789669,"37,183.42"
Home Office,Home Office,20/08/2010,Grant,CPG - Crime & Policing Group,THAMES VALLEY POLICE AUTHORITY 1 (,474242,"25,000.00"
Home Office,Home Office,20/08/2010,Grant,CPG - Crime & Policing Group,STAFFORDSHIRE POLICE AUTHORITY (G),474242,"35,000.00"
Home Office,Home Office,20/08/2010,Grant,CPG - Crime & Policing Group,SOUTH WALES POLICE AUTHORITY 1 (G),474242,"35,000.00"
Home Office,Home Office,20/08/2010,Grant,CPG - Crime & Policing Group,NORTHAMPTONSHIRE POLICE 1 (G),474242,"47,500.00"
Home Office,Home Office,20/08/2010,Grant,CPG - Crime & Policing Group,RL BOR OF WINDSOR & MAIDENHEAD (G),473734,"26,185.73"
Home Office,Home Office,20/08/2010,Grant,CPG - Crime & Policing Group,SOUTH GLOUCESTERSHIRE COUNCIL 1 (G,473734,"33,694.95"
Home Office,Home Office,20/08/2010,Grant,CPG - Crime & Policing Group,BATH & NORTH EAST SOMERSET COUNCIL,473734,"34,130.39"
Home Office,Home Office,20/08/2010,Grant,CPG - Crime & Policing Group,SWINDON BOROUGH COUNCIL (G),473734,"41,648.49"
Home Office,Home Office,20/08/2010,Grant,CPG - Crime & Policing Group,NORTH TYNESIDE COUNCIL 1 (G),473734,"52,194.60"
Home Office,Home Office,20/08/2010,Grant,CPG - Crime & Policing Group,WILTSHIRE COUNTY COUNCIL 1 (G),473734,"54,949.31"
Home Office,Home Office,20/08/2010,Grant,CPG - Crime & Policing Group,ST HELENS MBC (G),473734,"58,562.96"
Home Office,Home Office,20/08/2010,Grant,CPG - Crime & Policing Group,NORTHUMBERLAND COUNTY COUNCIL 1 (G,473734,"69,327.77"
Home Office,Home Office,20/08/2010,Grant,CPG - Crime & Policing Group,LONDON BOROUGH OF BARKING & DAGENH,473734,"69,377.02"
Home Office,Home Office,20/08/2010,Grant,CPG - Crime & Policing Group,CITY OF STOKE ON TRENT (G),473734,"82,515.13"
Home Office,Home Office,20/08/2010,Grant,CPG - Crime & Policing Group,CHESHIRE CONSTABULARY (G),473734,"86,342.17"
Home Office,Home Office,20/08/2010,Grant,CPG - Crime & Policing Group,SOLIHULL PRIMARY CARE TRUST (G),473734,"103,309.49"
Home Office,Home Office,20/08/2010,Grant,CPG - Crime & Policing Group,BLACKPOOL PCT (G),473734,"114,214.57"
Home Office,Home Office,20/08/2010,Grant,CPG - Crime & Policing Group,EASINGTON PCT (G),473734,"123,163.14"
Home Office,Home Office,20/08/2010,Grant,CPG - Crime & Policing Group,SLOUGH BOROUGH COUNCIL (G),473734,"183,400.00"
Home Office,Home Office,20/08/2010,Grant,CPG - Crime & Policing Group,HERTFORDSHIRE COUNTY COUNCIL 1 (G),473734,"195,097.21"
Home Office,Home Office,20/08/2010,Grant,CPG - Crime & Policing Group,TAMESIDE MBC (G),473734,"208,869.23"
Home Office,Home Office,20/08/2010,Grant,CPG - Crime & Policing Group,COVENTRY PRIMARY CARE TRUST (G),473734,"228,594.49"
Home Office,Home Office,20/08/2010,Grant,CPG - Crime & Policing Group,READING BOROUGH COUNCIL 1 (G),473734,"249,400.85"
Home Office,Home Office,20/08/2010,Professional & Admin Services.Business admin services - PROG,CPG - Crime & Policing Group,CATCH22,1779139,"48,129.66"
Home Office,Home Office,23/08/2010,Grant,CPG - Crime & Policing Group,NORTH EAST LINCOLNSHIRE CARE TRUST,476366,"56,250.00"
Home Office,Home Office,23/08/2010,IT & Telecommunications.IT & Telecommunications,CPG - Crime & Policing Group,CRIMINAL RECORDS BUREAU,1744840,"1,900,638.00"
Home Office,Home Office,24/08/2010,Grant,CPG - Crime & Policing Group,INDEPENDENT CUSTODY VISITING ASSN,476968,"47,405.00"
Home Office,Home Office,24/08/2010,Grant,CPG - Crime & Policing Group,NATIONAL TREATMENT AGENCY (EASTERN,411606-1,"510,722.25"
Home Office,Home Office,24/08/2010,Professional & Admin Services.Consultancy - Impementation,CPG - Crime & Policing Group,AUDIT COMMISSION,1792407,"61,027.49"
Home Office,Home Office,25/08/2010,"Transport, Storage & Mail Serv.Rail Passenger Transport- PROG",CPG - Crime & Policing Group,SURREY POLICE AUTHORITY,1792597,"100,852.80"
Home Office,Home Office,27/08/2010,Grant,CPG - Crime & Policing Group,OXFORDSHIRE COUNTY COUNCIL 1 (G),479040,"25,171.75"
Home Office,Home Office,27/08/2010,Grant,CPG - Crime & Policing Group,GLOUCESTERSHIRE COUNTY COUNCIL 1 (,479040,"25,519.13"
Home Office,Home Office,27/08/2010,Grant,CPG - Crime & Policing Group,SUFFOLK COUNTY COUNCIL (G),479040,"25,573.25"
Home Office,Home Office,27/08/2010,Grant,CPG - Crime & Policing Group,LINCOLNSHIRE COUNTY COUNCIL 1 (G),479040,"26,131.00"
Home Office,Home Office,27/08/2010,Grant,CPG - Crime & Policing Group,DEVON COUNTY COUNCIL 1 (G),479040,"27,229.63"
Home Office,Home Office,27/08/2010,Grant,CPG - Crime & Policing Group,LEICESTERSHIRE COUNTY COUNCIL 1 (G,479040,"27,537.25"
Home Office,Home Office,27/08/2010,Grant,CPG - Crime & Policing Group,BRISTOL CITY COUNCIL 1 (G),479040,"27,911.63"
Home Office,Home Office,27/08/2010,Grant,CPG - Crime & Policing Group,NORTHAMPTONSHIRE COUNTY COUNCIL 1,479040,"30,894.13"
Home Office,Home Office,27/08/2010,Grant,CPG - Crime & Policing Group,NORFOLK COUNTY COUNCIL 1 (G),479040,"31,203.50"
Home Office,Home Office,27/08/2010,Grant,CPG - Crime & Policing Group,DERBYSHIRE COUNTY COUNCIL 1 (G),479040,"32,371.25"
Home Office,Home Office,27/08/2010,Grant,CPG - Crime & Policing Group,STAFFORDSHIRE COUNTY COUNCIL 1 (G),479040,"35,708.00"
Home Office,Home Office,27/08/2010,Grant,CPG - Crime & Policing Group,HERTFORDSHIRE COUNTY COUNCIL 1 (G),479040,"41,853.38"
Home Office,Home Office,27/08/2010,Grant,CPG - Crime & Policing Group,ESSEX COUNTY COUNCIL 1 (G),479040,"46,957.50"
Home Office,Home Office,27/08/2010,Grant,CPG - Crime & Policing Group,LANCASHIRE COUNTY COUNCIL 1 (G),479040,"49,301.13"
Home Office,Home Office,27/08/2010,Grant,CPG - Crime & Policing Group,BIRMINGHAM CITY COUNCIL (G),479040,"61,660.13"
Home Office,Home Office,27/08/2010,Grant,CPG - Crime & Policing Group,RL BOR OF WINDSOR & MAIDENHEAD (G),478436,"26,185.73"
Home Office,Home Office,27/08/2010,Grant,CPG - Crime & Policing Group,ROYAL BOROUGH OF KINGSTON-UPON-THA,478436,"29,441.59"
Home Office,Home Office,27/08/2010,Grant,CPG - Crime & Policing Group,NORTH SOMERSET DISTRICT COUNCIL 1,478436,"29,529.90"
Home Office,Home Office,27/08/2010,Grant,CPG - Crime & Policing Group,ISLE OF WIGHT COUNCIL 1 (G),478436,"30,353.32"
Home Office,Home Office,27/08/2010,Grant,CPG - Crime & Policing Group,SOUTH GLOUCESTERSHIRE COUNCIL 1 (G,478436,"33,694.95"
Home Office,Home Office,27/08/2010,Grant,CPG - Crime & Policing Group,HEREFORD CITY COUNCIL (G),478436,"33,830.71"
Home Office,Home Office,27/08/2010,Grant,CPG - Crime & Policing Group,BATH & NORTH EAST SOMERSET COUNCIL,478436,"34,130.39"
Home Office,Home Office,27/08/2010,Grant,CPG - Crime & Policing Group,HALTON BOROUGH COUNCIL (G),478436,"34,242.43"
Home Office,Home Office,27/08/2010,Grant,CPG - Crime & Policing Group,WARRINGTON BOROUGH COUNCIL (G),478436,"36,191.85"
Home Office,Home Office,27/08/2010,Grant,CPG - Crime & Policing Group,LONDON BOROUGH OF SUTTON 1 (G),478436,"36,480.68"
Home Office,Home Office,27/08/2010,Grant,CPG - Crime & Policing Group,DORSET COUNTY COUNCIL 1 (G),478436,"40,194.76"
Home Office,Home Office,27/08/2010,Grant,CPG - Crime & Policing Group,MILTON KEYNES COUNCIL 1 (G),478436,"41,584.55"
Home Office,Home Office,27/08/2010,Grant,CPG - Crime & Policing Group,SWINDON BOROUGH COUNCIL (G),478436,"41,648.49"
Home Office,Home Office,27/08/2010,Grant,CPG - Crime & Policing Group,SOUTHEND ON SEA BOROUGH COUNCI (G),478436,"42,362.80"
Home Office,Home Office,27/08/2010,Grant,CPG - Crime & Policing Group,DARLINGTON PRIMARY CARE TRUST (G),478436,"43,499.91"
Home Office,Home Office,27/08/2010,Grant,CPG - Crime & Policing Group,LONDON BOROUGH OF MERTON 2 (G),478436,"43,532.08"
Home Office,Home Office,27/08/2010,Grant,CPG - Crime & Policing Group,LONDON BOROUGH HAVERING (G),478436,"43,839.62"
Home Office,Home Office,27/08/2010,Grant,CPG - Crime & Policing Group,LONDON BOROUGH OF HARROW 1 (G),478436,"47,575.40"
Home Office,Home Office,27/08/2010,Grant,CPG - Crime & Policing Group,BEXLEY DAT (G),478436,"49,449.78"
Home Office,Home Office,27/08/2010,Grant,CPG - Crime & Policing Group,BOURNEMOUTH BOROUGH COUNCIL 1 (G),478436,"49,778.90"
Home Office,Home Office,27/08/2010,Grant,CPG - Crime & Policing Group,NORTH TYNESIDE COUNCIL 1 (G),478436,"52,194.60"
Home Office,Home Office,27/08/2010,Grant,CPG - Crime & Policing Group,HILLINGDON PRIMARY CARE TRUST (G),478436,"54,511.08"
Home Office,Home Office,27/08/2010,Grant,CPG - Crime & Policing Group,WILTSHIRE COUNTY COUNCIL 1 (G),478436,"54,949.31"
Home Office,Home Office,27/08/2010,Grant,CPG - Crime & Policing Group,KNOWSLEY MBC (G),478436,"56,279.97"
Home Office,Home Office,27/08/2010,Grant,CPG - Crime & Policing Group,ST HELENS MBC (G),478436,"58,562.96"
Home Office,Home Office,27/08/2010,Grant,CPG - Crime & Policing Group,LONDON BOROUGH OF BROMLEY 1 (G),478436,"64,817.14"
Home Office,Home Office,27/08/2010,Grant,CPG - Crime & Policing Group,CORPORATION OF LONDON (G),478436,"68,582.29"
Home Office,Home Office,27/08/2010,Grant,CPG - Crime & Policing Group,NORTHUMBERLAND COUNTY COUNCIL 1 (G,478436,"69,327.77"
Home Office,Home Office,27/08/2010,Grant,CPG - Crime & Policing Group,LONDON BOROUGH OF BARKING & DAGENH,478436,"69,377.02"
Home Office,Home Office,27/08/2010,Grant,CPG - Crime & Policing Group,BLACKBURN WITH DARWEN BOROUGH COUN,478436,"70,447.34"
Home Office,Home Office,27/08/2010,Grant,CPG - Crime & Policing Group,PORTSMOUTH CITY COUNCIL 2 (G),478436,"71,729.54"
Home Office,Home Office,27/08/2010,Grant,CPG - Crime & Policing Group,SOMERSET COUNTY COUNCIL 1 (G),478436,"74,816.97"
Home Office,Home Office,27/08/2010,Grant,CPG - Crime & Policing Group,LONDON BOROUGH OF BARNET 1 (G),478436,"76,183.61"
Home Office,Home Office,27/08/2010,Grant,CPG - Crime & Policing Group,SOUTHAMPTON CITY COUNCIL 1 (G),478436,"77,301.26"
Home Office,Home Office,27/08/2010,Grant,CPG - Crime & Policing Group,CORN &ISLES OF SCILLY PRIMARY CARE,478436,"77,648.77"
Home Office,Home Office,27/08/2010,Grant,CPG - Crime & Policing Group,BRIGHTON & HOVE COUNCIL (G),478436,"81,151.36"
Home Office,Home Office,27/08/2010,Grant,CPG - Crime & Policing Group,CITY OF STOKE ON TRENT (G),478436,"82,515.13"
Home Office,Home Office,27/08/2010,Grant,CPG - Crime & Policing Group,GLOUCESTERSHIRE PCT,478436,"85,974.32"
Home Office,Home Office,27/08/2010,Grant,CPG - Crime & Policing Group,CUMBRIA COUNTY COUNCIL 1 (G),478436,"86,263.58"
Home Office,Home Office,27/08/2010,Grant,CPG - Crime & Policing Group,CHESHIRE CONSTABULARY (G),478436,"86,342.17"
Home Office,Home Office,27/08/2010,Grant,CPG - Crime & Policing Group,WEST SUSSEX COUNTY COUNCIL 1 (G),478436,"86,858.45"
Home Office,Home Office,27/08/2010,Grant,CPG - Crime & Policing Group,EAST SUSSEX COUNTY COUNCIL 1 (G),478436,"89,686.09"
Home Office,Home Office,27/08/2010,Grant,CPG - Crime & Policing Group,CAMBRIDGESHIRE COUNTY COUNCIL (G),478436,"90,523.67"
Home Office,Home Office,27/08/2010,Grant,CPG - Crime & Policing Group,SOLIHULL PRIMARY CARE TRUST (G),478436,"103,309.49"
Home Office,Home Office,27/08/2010,Grant,CPG - Crime & Policing Group,DERBY CITY COUNCIL COMMUNITY SAFET,478436,"106,842.68"
Home Office,Home Office,27/08/2010,Grant,CPG - Crime & Policing Group,LEICESTERSHIRE COUNTY COUNCIL 1 (G,478436,"108,000.50"
Home Office,Home Office,27/08/2010,Grant,CPG - Crime & Policing Group,BLACKPOOL PCT (G),478436,"114,214.57"
Home Office,Home Office,27/08/2010,Grant,CPG - Crime & Policing Group,BURY MBC (G),478436,"119,663.22"
Home Office,Home Office,27/08/2010,Grant,CPG - Crime & Policing Group,EASINGTON PCT (G),478436,"123,163.14"
Home Office,Home Office,27/08/2010,Grant,CPG - Crime & Policing Group,BIRKENHEAD & WALLASEY PCT (G),478436,"133,310.10"
Home Office,Home Office,27/08/2010,Grant,CPG - Crime & Policing Group,LINCOLNSHIRE PCT,478436,"135,269.01"
Home Office,Home Office,27/08/2010,Grant,CPG - Crime & Policing Group,HARTLEPOOL COUNCIL (G),478436,"136,342.41"
Home Office,Home Office,27/08/2010,Grant,CPG - Crime & Policing Group,CALDERDALE MBC (G),478436,"139,711.01"
Home Office,Home Office,27/08/2010,Grant,CPG - Crime & Policing Group,SURREY PCT (G),478436,"140,614.80"
Home Office,Home Office,27/08/2010,Grant,CPG - Crime & Policing Group,NORFOLK COUNTY COUNCIL 1 (G),478436,"141,881.96"
Home Office,Home Office,27/08/2010,Grant,CPG - Crime & Policing Group,GATESHEAD PCT (G),478436,"149,154.82"
Home Office,Home Office,27/08/2010,Grant,CPG - Crime & Policing Group,HAMPSHIRE CC (HAMPSHIRE DAT) (G),478436,"152,846.06"
Home Office,Home Office,27/08/2010,Grant,CPG - Crime & Policing Group,CHESTERFIELD PCT (G),478436,"152,910.00"
Home Office,Home Office,27/08/2010,Grant,CPG - Crime & Policing Group,LONDON BOROUGH OF REDBRIDGE 1 (G),478436,"157,671.62"
Home Office,Home Office,27/08/2010,Grant,CPG - Crime & Policing Group,STOCKPORT METRO BOROUGH COUNCIL (G,478436,"159,398.62"
Home Office,Home Office,27/08/2010,Grant,CPG - Crime & Policing Group,TRAFFORD METROPOLITAN BOROUGH COUN,478436,"161,244.05"
Home Office,Home Office,27/08/2010,Grant,CPG - Crime & Policing Group,NORTH LINCOLNSHIRE PCT (G),478436,"163,249.35"
Home Office,Home Office,27/08/2010,Grant,CPG - Crime & Policing Group,STAFFORDSHIRE COUNTY COUNCIL 1 (G),478436,"163,557.10"
Home Office,Home Office,27/08/2010,Grant,CPG - Crime & Policing Group,SALFORD CITY COUNCIL (G),478436,"166,332.13"
Home Office,Home Office,27/08/2010,Grant,CPG - Crime & Policing Group,SOUTH SEFTON PCT (G),478436,"167,424.25"
Home Office,Home Office,27/08/2010,Grant,CPG - Crime & Policing Group,ROTHERHAM PCT (G),478436,"170,864.22"
Home Office,Home Office,27/08/2010,Grant,CPG - Crime & Policing Group,PETERBOROUGH DAT (G),478436,"172,879.26"
Home Office,Home Office,27/08/2010,Grant,CPG - Crime & Policing Group,ROCHDALE M B C (G),478436,"174,685.88"
Home Office,Home Office,27/08/2010,Grant,CPG - Crime & Policing Group,STOCKTON ON TEES BOROUGH COUNCIL 1,478436,"174,808.63"
Home Office,Home Office,27/08/2010,Grant,CPG - Crime & Policing Group,SLOUGH BOROUGH COUNCIL (G),478436,"183,400.00"
Home Office,Home Office,27/08/2010,Grant,CPG - Crime & Policing Group,LONDON BOROUGH OF ENFIELD 1 (G),478436,"184,419.25"
Home Office,Home Office,27/08/2010,Grant,CPG - Crime & Policing Group,SUNDERLAND PCT (G),478436,"186,100.62"
Home Office,Home Office,27/08/2010,Grant,CPG - Crime & Policing Group,HERTFORDSHIRE COUNTY COUNCIL 1 (G),478436,"195,097.21"
Home Office,Home Office,27/08/2010,Grant,CPG - Crime & Policing Group,LONDON BOROUGH OF GREENWICH 1 (G),478436,"203,276.06"
Home Office,Home Office,27/08/2010,Grant,CPG - Crime & Policing Group,TAMESIDE MBC (G),478436,"208,869.23"
Home Office,Home Office,27/08/2010,Grant,CPG - Crime & Policing Group,LONDON BOROUGH OF KENSINGTON & CHE,478436,"219,191.15"
Home Office,Home Office,27/08/2010,Grant,CPG - Crime & Policing Group,WANDSWORTH BOROUGH COUNCIL (G),478436,"223,180.43"
Home Office,Home Office,27/08/2010,Grant,CPG - Crime & Policing Group,POSITIVE STEPS OLDHAM (G),478436,"225,962.85"
Home Office,Home Office,27/08/2010,Grant,CPG - Crime & Policing Group,NORTH EAST LINCOLNSHIRE PCT(G),478436,"227,149.85"
Home Office,Home Office,27/08/2010,Grant,CPG - Crime & Policing Group,CROYDON PCT (G),478436,"227,817.22"
Home Office,Home Office,27/08/2010,Grant,CPG - Crime & Policing Group,COVENTRY PRIMARY CARE TRUST (G),478436,"228,594.49"
Home Office,Home Office,27/08/2010,Grant,CPG - Crime & Policing Group,SANDWELL PRIMARY CARE TRUST,478436,"232,756.23"
Home Office,Home Office,27/08/2010,Grant,CPG - Crime & Policing Group,MIDDLESBROUGH BOROUGH COUNCIL 1 (G,478436,"240,047.19"
Home Office,Home Office,27/08/2010,Grant,CPG - Crime & Policing Group,NORTHAMPTONSHIRE COUNTY COUNCIL 2,478436,"240,570.54"
Home Office,Home Office,27/08/2010,Grant,CPG - Crime & Policing Group,READING BOROUGH COUNCIL 1 (G),478436,"249,400.85"
Home Office,Home Office,27/08/2010,Grant,CPG - Crime & Policing Group,EALING PRIMARY CARE TRUST PCT (G),478436,"250,904.40"
Home Office,Home Office,27/08/2010,Grant,CPG - Crime & Policing Group,LONDON BOROUGH OF HAMMERSMITH & FU,478436,"253,962.46"
Home Office,Home Office,27/08/2010,Grant,CPG - Crime & Policing Group,BOLTON MBC 1 (G),478436,"257,545.79"
Home Office,Home Office,27/08/2010,Grant,CPG - Crime & Policing Group,BRENT PRIMARY CARE TRUST (G),478436,"266,962.16"
Home Office,Home Office,27/08/2010,Grant,CPG - Crime & Policing Group,LONDON BOROUGH OF HARINGEY 1 (G),478436,"271,240.38"
Home Office,Home Office,27/08/2010,Grant,CPG - Crime & Policing Group,CAMDEN PRIMARY CARE TRUST (G),478436,"282,587.38"
Home Office,Home Office,27/08/2010,Grant,CPG - Crime & Policing Group,KENT COUNTY COUNCIL 1 (G),478436,"283,075.08"
Home Office,Home Office,27/08/2010,Grant,CPG - Crime & Policing Group,PRESTON PRIMARY CARE NHS TRUST (G),478436,"284,069.57"
Home Office,Home Office,27/08/2010,Grant,CPG - Crime & Policing Group,OXFORD CITY PCT,478436,"287,022.88"
Home Office,Home Office,27/08/2010,Grant,CPG - Crime & Policing Group,LONDON BOROUGH OF LEWISHAM 1 (G),478436,"288,487.83"
Home Office,Home Office,27/08/2010,Grant,CPG - Crime & Policing Group,NEWCASTLE-UPON-TYNE MDC (G),478436,"304,895.89"
Home Office,Home Office,27/08/2010,Grant,CPG - Crime & Policing Group,ISLINGTON PRIMARY CARE TRUST PCT (,478436,"320,560.81"
Home Office,Home Office,27/08/2010,Grant,CPG - Crime & Policing Group,LONDON BOROUGH OF NEWHAM (G),478436,"331,822.47"
Home Office,Home Office,27/08/2010,Grant,CPG - Crime & Policing Group,LEICESTER CITY COUNCIL 1 (G),478436,"354,792.53"
Home Office,Home Office,27/08/2010,Grant,CPG - Crime & Policing Group,LONDON BORO OF TOWER HAMLETS 1 (G),478436,"359,223.34"
Home Office,Home Office,27/08/2010,Grant,CPG - Crime & Policing Group,KINGSTON UPON HULL CITY COUNCIL 2,478436,"360,837.57"
Home Office,Home Office,27/08/2010,Grant,CPG - Crime & Policing Group,LONDON BOROUGH OF HACKNEY 1,478436,"367,772.04"
Home Office,Home Office,27/08/2010,Grant,CPG - Crime & Policing Group,LAMBETH PCT (G),478436,"417,141.54"
Home Office,Home Office,27/08/2010,Grant,CPG - Crime & Policing Group,WESTMINSTER CITY COUNCIL (G),478436,"437,126.04"
Home Office,Home Office,27/08/2010,Grant,CPG - Crime & Policing Group,NOTTINGHAM CITY COUNCIL 2 (G),478436,"455,427.20"
Home Office,Home Office,27/08/2010,Grant,CPG - Crime & Policing Group,BRADFORD COUNCIL(G),478436,"478,730.06"
Home Office,Home Office,27/08/2010,Grant,CPG - Crime & Policing Group,LIVERPOOL CITY COUNCIL 1 (G),478436,"506,592.94"
Home Office,Home Office,27/08/2010,Grant,CPG - Crime & Policing Group,NOTTINGHAMSHIRE COUNTY TEACHING PC,478436,"525,160.08"
Home Office,Home Office,27/08/2010,Grant,CPG - Crime & Policing Group,MANCHESTER CITY COUNCIL 2 (G),478436,"627,558.45"
Home Office,Home Office,27/08/2010,Grant,CPG - Crime & Policing Group,HEART OF BIRMINGHAM TEACHING PCT (,478436,"1,341,636.89"
Home Office,Home Office,27/08/2010,Grant,CPG - Crime & Policing Group,LANCASHIRE POLICE AUTHORITY 1 (G),480900,"52,817.80"
Home Office,Home Office,27/08/2010,Grant,CPG - Crime & Policing Group,CAMBRIDGESHIRE POLICE AUTHORITY 1,480900,"61,864.46"
Home Office,Home Office,27/08/2010,Grant,CPG - Crime & Policing Group,BEDFORDSHIRE POLICE AUTHORITY 1 (G,480900,"78,922.20"
Home Office,Home Office,27/08/2010,Grant,CPG - Crime & Policing Group,NORTHAMPTONSHIRE POLICE 1 (G),480900,"83,645.88"
Home Office,Home Office,27/08/2010,Grant,CPG - Crime & Policing Group,AVON & SOMERSET POLICE AUTHORITY 1,480900,"94,452.06"
Home Office,Home Office,27/08/2010,Grant,CPG - Crime & Policing Group,LEICESTERSHIRE POLICE AUTHORITY (G,480900,"145,141.21"
Home Office,Home Office,27/08/2010,Grant,CPG - Crime & Policing Group,HUMBERSIDE POLICE AUTHORITY 1 (G),480900,"179,916.18"
Home Office,Home Office,27/08/2010,Grant,CPG - Crime & Policing Group,THAMES VALLEY POLICE AUTHORITY 1 (,480900,"185,296.06"
Home Office,Home Office,27/08/2010,Grant,CPG - Crime & Policing Group,NORTHUMBRIA POLICE (G),480900,"212,190.30"
Home Office,Home Office,27/08/2010,Grant,CPG - Crime & Policing Group,NOTTINGHAMSHIRE POLICE AUTHORITY 2,480900,"249,854.99"
Home Office,Home Office,27/08/2010,Grant,CPG - Crime & Policing Group,MERSEYSIDE POLICE AUTHORITY 1 (G),480900,"259,505.90"
Home Office,Home Office,27/08/2010,Grant,CPG - Crime & Policing Group,SOUTH YORKSHIRE POLICE AUTHORITY 1,480900,"311,152.23"
Home Office,Home Office,27/08/2010,Grant,CPG - Crime & Policing Group,WEST YORKSHIRE POLICE (G),480900,"487,768.55"
Home Office,Home Office,27/08/2010,Grant,CPG - Crime & Policing Group,GREATER MANCHESTER POLICE AUTHORIT,480900,"608,558.24"
Home Office,Home Office,27/08/2010,Grant,CPG - Crime & Policing Group,WEST MIDLANDS POLICE AUTHORITY 1 (,480900,"629,329.07"
Home Office,Home Office,27/08/2010,Grant,CPG - Crime & Policing Group,METROPOLITAN POLICE SERVICE (G),480900,"1,553,967.58"
Home Office,Home Office,27/08/2010,Grant,CPG - Crime & Policing Group,GWENT POLICE AUTHORITY 1 (G),480900,"51,230.16"
Home Office,Home Office,27/08/2010,Grant,CPG - Crime & Policing Group,SOUTH WALES POLICE AUTHORITY 1 (G),480900,"90,798.90"
Home Office,Home Office,27/08/2010,Grant,CPG - Crime & Policing Group,NORTH WALES POLICE AUTHORITY (G),480900,"119,695.50"
Home Office,Home Office,27/08/2010,IT & Telecommunications.IT & Telecommunications,CPG - Crime & Policing Group,LOGICA CMG (UK) LIMITED,1713686,"38,941.85"
Home Office,Home Office,27/08/2010,IT & Telecommunications.IT & Telecommunications,CPG - Crime & Policing Group,LOGICA CMG UK LTD,1779761,"49,811.78"
Home Office,Home Office,27/08/2010,IT & Telecoms Components.Computer Equip (FA),CPG - Crime & Policing Group,LOGICA CMG (UK) LIMITED,1713719,"64,109.18"
Home Office,Home Office,27/08/2010,"IT, Broadcasting & Telecomms.IT Run Cost � Info Support",CPG - Crime & Policing Group,FUJITSU SERVICES (ALCEDO) LTD,1778810,"78,462.27"
Home Office,Home Office,31/08/2010,"Science, Technical & Research.Social Research",CPG - Crime & Policing Group,RIKSOL CONSULTING LTD T/A RISK SOLUTIONS,1753559,"35,080.80"
Home Office,CRB - Criminal Records Bureau,04/08/2010,Finance,CRB - Criminal Records Bureau,Capita Business Services Ltd,14608    2,"1,461,297.12"
Home Office,CRB - Criminal Records Bureau,18/08/2010,Police costs per check,CRB - Criminal Records Bureau,West Mercia Police Fund,14668    50,"40,252.75"
Home Office,CRB - Criminal Records Bureau,18/08/2010,Police costs per check,CRB - Criminal Records Bureau,West Yorkshire Police,14668    49,"172,455.98"
Home Office,CRB - Criminal Records Bureau,18/08/2010,Police costs per check,CRB - Criminal Records Bureau,West Midlands Police,14668    48,"142,954.70"
Home Office,CRB - Criminal Records Bureau,18/08/2010,Police costs per check,CRB - Criminal Records Bureau,Thames Valley Police Authority,14668    46,"187,919.34"
Home Office,CRB - Criminal Records Bureau,18/08/2010,Police costs per check,CRB - Criminal Records Bureau,Sussex Police,14668    44,"70,925.99"
Home Office,CRB - Criminal Records Bureau,18/08/2010,Police costs per check,CRB - Criminal Records Bureau,Surrey Police Authority,14668    43,"51,958.84"
Home Office,CRB - Criminal Records Bureau,18/08/2010,Police costs per check,CRB - Criminal Records Bureau,Suffolk Police Authority,14668    42,"32,126.48"
Home Office,CRB - Criminal Records Bureau,18/08/2010,Police costs per check,CRB - Criminal Records Bureau,Staffordshire Police Authority,14668    41,"43,609.19"
Home Office,CRB - Criminal Records Bureau,18/08/2010,Police costs per check,CRB - Criminal Records Bureau,South Yorkshire Police,14668    40,"86,848.94"
Home Office,CRB - Criminal Records Bureau,18/08/2010,Police costs per check,CRB - Criminal Records Bureau,South Wales Police,14668    39,"30,100.36"
Home Office,CRB - Criminal Records Bureau,18/08/2010,Police costs per check,CRB - Criminal Records Bureau,Avon & Somerset Police,14668    38,"106,349.78"
Home Office,CRB - Criminal Records Bureau,18/08/2010,Police costs per check,CRB - Criminal Records Bureau,Disclosure Scotland,14668    37,"27,437.74"
Home Office,CRB - Criminal Records Bureau,18/08/2010,Police costs per check,CRB - Criminal Records Bureau,North Yorkshire Police Authori,14668    35,"52,285.68"
Home Office,CRB - Criminal Records Bureau,18/08/2010,Police costs per check,CRB - Criminal Records Bureau,North Wales Police Funding Acc,14668    34,"45,418.65"
Home Office,CRB - Criminal Records Bureau,18/08/2010,Police costs per check,CRB - Criminal Records Bureau,Nottinghamshire Police Authori,14668    33,"44,692.44"
Home Office,CRB - Criminal Records Bureau,18/08/2010,Police costs per check,CRB - Criminal Records Bureau,Northumbria Police,14668    32,"34,387.98"
Home Office,CRB - Criminal Records Bureau,18/08/2010,Police costs per check,CRB - Criminal Records Bureau,Norfolk Police Authority,14668    31,"40,006.75"
Home Office,CRB - Criminal Records Bureau,18/08/2010,Police costs per check,CRB - Criminal Records Bureau,Northants Police Authority,14668    30,"39,120.03"
Home Office,CRB - Criminal Records Bureau,18/08/2010,Police costs per check,CRB - Criminal Records Bureau,The Metropolitan Police,14668    29,"72,173.75"
Home Office,CRB - Criminal Records Bureau,18/08/2010,Police costs per check,CRB - Criminal Records Bureau,Leicestershire Police Authorit,14668    25,"175,958.13"
Home Office,CRB - Criminal Records Bureau,18/08/2010,Police costs per check,CRB - Criminal Records Bureau,Lancashire Police Authority,14668    24,"107,968.38"
Home Office,CRB - Criminal Records Bureau,18/08/2010,Police costs per check,CRB - Criminal Records Bureau,KENT CONSTABULARY,14668    23,"85,295.22"
Home Office,CRB - Criminal Records Bureau,18/08/2010,Police costs per check,CRB - Criminal Records Bureau,Humberside Police Authority,14668    22,"158,196.98"
Home Office,CRB - Criminal Records Bureau,18/08/2010,Police costs per check,CRB - Criminal Records Bureau,Hertfordshire Police Authority,14668    20,"114,036.20"
Home Office,CRB - Criminal Records Bureau,18/08/2010,Police costs per check,CRB - Criminal Records Bureau,Gwent Police Authority,14668    19,"28,101.02"
Home Office,CRB - Criminal Records Bureau,18/08/2010,Police costs per check,CRB - Criminal Records Bureau,Greater Manchester Police,14668    18,"101,384.49"
Home Office,CRB - Criminal Records Bureau,18/08/2010,Police costs per check,CRB - Criminal Records Bureau,Durham Police Authority,14668    15,"31,711.57"
Home Office,CRB - Criminal Records Bureau,18/08/2010,Police costs per check,CRB - Criminal Records Bureau,Devon & Cornwall Police Author,14668    13,"82,406.14"
Home Office,CRB - Criminal Records Bureau,18/08/2010,Police costs per check,CRB - Criminal Records Bureau,Derbyshire Police Authority,14668    12,"71,931.38"
Home Office,CRB - Criminal Records Bureau,18/08/2010,Police costs per check,CRB - Criminal Records Bureau,Cumbria Police Authority Main,14668    11,"56,411.45"
Home Office,CRB - Criminal Records Bureau,18/08/2010,Police costs per check,CRB - Criminal Records Bureau,Cleveland Police Authority,14668    10,"28,926.39"
Home Office,CRB - Criminal Records Bureau,18/08/2010,Police costs per check,CRB - Criminal Records Bureau,Cheshire Police Authority,14668    7,"181,180.65"
Home Office,CRB - Criminal Records Bureau,18/08/2010,Police costs per check,CRB - Criminal Records Bureau,Cambridgeshire Police Auth,14668    4,"121,447.93"
Home Office,CRB - Criminal Records Bureau,18/08/2010,Police costs per check,CRB - Criminal Records Bureau,British Transport Police,14668    2,"69,596.80"
Home Office,CRB - Criminal Records Bureau,18/08/2010,Police costs per check,CRB - Criminal Records Bureau,Bedfordshire Police,14668    1,"52,594.87"
Home Office,Home Office,03/08/2010,IT & Telecommunications Equip.Hardware adapters,Communications,MORSE,1763700,"70,500.00"
Home Office,Home Office,03/08/2010,GPC Card,PFD*,BARCLAYS BANK,1777937,"397,022.44"
Home Office,Home Office,03/08/2010,"IT, Broadcasting & Telecomms.Computer accessories - PROG",SSD - Shared Service Directorate,BT,1720799,"27,156.81"
Home Office,Home Office,03/08/2010,"IT, Broadcasting & Telecomms.IT Maintenance - ADMN",SSD - Shared Service Directorate,HEWLETT PACKARD,1770497,"110,508.57"
Home Office,Home Office,03/08/2010,Management & Admin Serv.Temp IT N/w Specialists - ADMN,SSD - Shared Service Directorate,ADVANTAGE TECHNICAL RESOURCING,1777853,"33,808.98"
Home Office,Home Office,03/08/2010,"Transport, Storage & Mail Serv.File (Archive) Storage - ADMN",SSD - Shared Service Directorate,TNT UK LIMITED,1776584,"39,922.55"
Home Office,Home Office,03/08/2010,Utilities.Pay Phone Provider Serv - PROG,SSD - Shared Service Directorate,BT,1776501,"112,904.54"
Home Office,Home Office,04/08/2010,Travel & Food & Lodging.Travel facilitation,PFD*,CARLSON WAGONLIT TRAVEL,1778386,"92,123.73"
Home Office,Home Office,04/08/2010,IT & TELECOMS.SERVICES,PFD*,FINCORE LTD,1743934,"61,481.88"
Home Office,Home Office,04/08/2010,IT & TELECOMS.SERVICES,PFD*,FINCORE LTD,1744013,"61,481.88"
Home Office,Home Office,04/08/2010,IT & TELECOMS.SERVICES,PFD*,FINCORE LTD,1744006,"61,481.88"
Home Office,Home Office,04/08/2010,PROFESSIONAL SERVICES.CONTINGENT LABOUR,PFD*,ADVANTAGE TECHNICAL RESOURCING,1757835,"26,002.57"
Home Office,Home Office,04/08/2010,"Science, Technical & Research.Social Research","Research, Dev & Statistics",UNIVERSITY OF NEWCASTLE UPON TYNE,1778083,"37,941.50"
Home Office,Home Office,04/08/2010,IT & Telecommunications.IT & Telecommunications,SSD - Shared Service Directorate,FUJITSU SERVICES (ALCEDO) LTD,1691858,"1,027,078.02"
Home Office,Home Office,04/08/2010,"IT, Broadcasting & Telecomms.IT Run Costs Other - ADMN",SSD - Shared Service Directorate,UNITED NATIONS OFFICE ON DRUGS AND CRIME,1778827,"78,750.00"
Home Office,Home Office,05/08/2010,Published Products.Electronic publication & music,Communications,SAVVIS UK LTD,1722509,"25,324.76"
Home Office,Home Office,06/08/2010,"IT, Broadcasting & Telecomms.Sirius-Business Projects- PROG",SSD - Shared Service Directorate,FUJITSU SERVICES (ALCEDO) LTD,1761712,"7,860,392.91"
Home Office,Home Office,09/08/2010,"IT, Broadcasting & Telecomms.Personal Comms Devices - PROG",SSD - Shared Service Directorate,GLOBAL CROSSING,1774456,"80,456.10"
Home Office,Home Office,09/08/2010,"Professional & Admin Services.Patent, Copyright Law",SSD - Shared Service Directorate,THE COPYRIGHT LICENSING AGENCY LTD,1781573,"165,170.08"
Home Office,Home Office,09/08/2010,"Science, Technical & Research.Computer services - PROG",SSD - Shared Service Directorate,FINCORE LTD,1777956,"41,078.00"
Home Office,Home Office,09/08/2010,"Science, Technical & Research.Computer services - PROG",SSD - Shared Service Directorate,FINCORE LTD,1777933,"61,481.88"
Home Office,Home Office,09/08/2010,"Science, Technical & Research.Computer services - PROG",SSD - Shared Service Directorate,FINCORE LTD,1777942,"61,481.88"
Home Office,Home Office,09/08/2010,"Science, Technical & Research.Computer services - PROG",SSD - Shared Service Directorate,FINCORE LTD,1777949,"61,481.88"
Home Office,Home Office,09/08/2010,"Science, Technical & Research.Computer services - PROG",SSD - Shared Service Directorate,FINCORE LTD,1777921,"61,481.88"
Home Office,Home Office,10/08/2010,Lab & Scientific Equip (FA).Laboratory & scientific equip,"Research, Dev & Statistics",UNIVERSITY COLLEGE LONDON,1782887,"49,999.00"
Home Office,Home Office,11/08/2010,Travel & Food & Lodging.Travel facilitation,PFD*,CARLSON WAGONLIT TRAVEL,1783303,"105,644.54"
Home Office,Home Office,11/08/2010,FLEET.VEHICLE MANAGEMENT,PFD*,LEX AUTOLEASE LTD,1783265,"57,886.02"
Home Office,Home Office,12/08/2010,"IT, Broadcasting & Telecomms.IT Running Cost - Maint - PROG",SSD - Shared Service Directorate,ATOS ORIGIN IT SERVICES UK LIMITED,1726616,"113,125.48"
Home Office,Home Office,13/08/2010,GPC Card,PFD*,BARCLAYS BANK,1776989,"136,093.20"
Home Office,Home Office,13/08/2010,ESTATES AND FACILITIES.RENT & RATES,PFD*,ANNES GATE PROPERTY PLC,1785446,"47,405.50"
Home Office,Home Office,13/08/2010,IT & Telecommunications.IT & Telecommunications,SSD - Shared Service Directorate,FUJITSU SERVICES (ALCEDO) LTD,1766123,"162,706.29"
Home Office,Home Office,13/08/2010,"IT, Broadcasting & Telecomms.IT Running Cost - Maint - PROG",SSD - Shared Service Directorate,ATOS ORIGIN IT SERVICES UK LIMITED,1767456,"1,895,877.27"
Home Office,Home Office,13/08/2010,"IT, Broadcasting & Telecomms.Sirius - Applications",SSD - Shared Service Directorate,FUJITSU SERVICES (ALCEDO) LTD,1766134,"53,726.39"
Home Office,Home Office,17/08/2010,MARKETING & COMMS.CONFERENCES AND EVENTS,PFD*,NYS CORPORATE LTD,1787063,"73,419.65"
Home Office,Home Office,17/08/2010,"IT, Broadcasting & Telecomms.Call management systems - ADMN",SSD - Shared Service Directorate,HM PRISON SERVICE,1787035,"767,273.83"
Home Office,Home Office,17/08/2010,"IT, Broadcasting & Telecomms.IT Maintenance - ADMN",SSD - Shared Service Directorate,ATOS ORIGIN IT SERVICES UK LIMITED,1771818,"716,686.08"
Home Office,Home Office,17/08/2010,Professional & Admin Services.Consultancy - Advice - PROG,SSD - Shared Service Directorate,OGC,1771522,"37,224.00"
Home Office,Home Office,18/08/2010,Professional & Admin Services.Consultancy - Advice - PROG,Performance & Finance Directorate,KPMG,1788900,"445,325.00"
Home Office,Home Office,18/08/2010,Travel & Food & Lodging.Travel facilitation,PFD*,CARLSON WAGONLIT TRAVEL,1788177,"85,104.27"
Home Office,Home Office,19/08/2010,"IT, Broadcasting & Telecomms.Sirius-Business Projects- PROG",SSD - Shared Service Directorate,FUJITSU SERVICES (ALCEDO) LTD,1757824,"205,095.05"
Home Office,Home Office,20/08/2010,ESTATES AND FACILITIES.RENT & RATES,"Research, Dev & Statistics",DTZ DEBENHAM TIE LEUNG LTD,1790548,"30,252.26"
Home Office,Home Office,20/08/2010,"IT, Broadcasting & Telecomms.IT Running Cost - Maint - PROG",SSD - Shared Service Directorate,ATOS ORIGIN IT SERVICES UK LIMITED,1773119,"36,963.01"
Home Office,Home Office,23/08/2010,Published Products.Electronic publication & music,Communications,SAVVIS UK LTD,1774885,"31,224.19"
Home Office,Home Office,23/08/2010,"IT, Broadcasting & Telecomms.IT Run Cost � Info Support",SSD - Shared Service Directorate,SAVVIS UK LTD,1774882,"142,458.49"
Home Office,Home Office,23/08/2010,"IT, Broadcasting & Telecomms.IT Run Cost � Info Support",SSD - Shared Service Directorate,SAVVIS UK LTD,1775404,"136,826.40"
Home Office,Home Office,23/08/2010,"IT, Broadcasting & Telecomms.IT Run Cost � Info Support",SSD - Shared Service Directorate,SAVVIS UK LTD,1774881,"59,224.29"
Home Office,Home Office,23/08/2010,"IT, Broadcasting & Telecomms.IT Run Cost � Info Support",SSD - Shared Service Directorate,SAVVIS UK LTD,1774860,"36,169.86"
Home Office,Home Office,23/08/2010,"IT, Broadcasting & Telecomms.Sirius - Other Services - ADMN",SSD - Shared Service Directorate,FUJITSU SERVICES (ALCEDO) LTD,1773988,"7,667,376.40"
Home Office,Home Office,23/08/2010,"Transport, Storage & Mail Serv.File (Archive) Storage - ADMN",SSD - Shared Service Directorate,TNT UK LIMITED,1790717,"36,349.34"
Home Office,Home Office,24/08/2010,Travel & Food & Lodging.Travel facilitation,PFD*,CARLSON WAGONLIT TRAVEL,1791798,"104,527.30"
Home Office,Home Office,24/08/2010,FLEET.VEHICLE MANAGEMENT,PFD*,ENTERPRISE RENT-A-CAR UK LTD,1791693,"38,942.16"
Home Office,Home Office,27/08/2010,IT & Telecommunications.IT & Telecommunications,SSD - Shared Service Directorate,FUJITSU SERVICES (ALCEDO) LTD,1778421,"57,881.54"
Home Office,Home Office,27/08/2010,IT & Telecommunications.IT & Telecommunications,SSD - Shared Service Directorate,FUJITSU SERVICES (ALCEDO) LTD,1778417,"38,070.00"
Home Office,Home Office,27/08/2010,IT & Telecommunications.IT & Telecommunications,SSD - Shared Service Directorate,FUJITSU SERVICES (ALCEDO) LTD,1778431,"440,978.67"
Home Office,Home Office,27/08/2010,"IT, Broadcasting & Telecomms.IT Run Costs Other - ADMN",SSD - Shared Service Directorate,FUJITSU SERVICES LTD,1778392,"660,585.52"
Home Office,Home Office,27/08/2010,"IT, Broadcasting & Telecomms.IT Running Cost - Maint - PROG",SSD - Shared Service Directorate,SERCO  LTD,1776981,"609,780.35"
Home Office,Home Office,02/08/2010,Professional & Admin Services,Group HR,DWP (SHARED SERVICES),2839408,"608,371.53"
Home Office,Home Office,11/08/2010,Professional & Admin Services,Performance & Finance Directorate,HM PRISON SERVICE,305912,"32,794.25"
Home Office,Home Office,13/08/2010,Security & Safety Services,Group HR,FCO SERVICES,6021607,"45,049.50"
Home Office,Home Office,24/08/2010,Professional & Admin Services,Performance & Finance Directorate,DEPARTMENT FOR ENVIRONMENT FOOD AND RURAL AFFAIRS(DEFRA),1000005686,"25,989.42"
Home Office,Home Office,31/08/2010,Professional & Admin Services,Group HR,DWP (SHARED SERVICES),2843860,"152,093.18"
Home Office,IPCC - Independent Police Complaints Commission,02/08/2010,Facilities,IPCC - Independent Police Complaints Commission,Acropolis Properties Ltd,RCT0033316,"26,961.84"
Home Office,IPCC - Independent Police Complaints Commission,03/08/2010,IT,IPCC - Independent Police Complaints Commission,BRITISH TELECOMMUNICATIONS PLC,RCT0033345,"25,844.45"
Home Office,IPCC - Independent Police Complaints Commission,17/08/2010,IT,IPCC - Independent Police Complaints Commission,BT GLOBAL SERVICES,RCT0033516,"25,284.78"
Home Office,IPCC - Independent Police Complaints Commission,20/08/2010,IT,IPCC - Independent Police Complaints Commission,STERIA,RCT0033567,"302,503.00"
Home Office,IPCC - Independent Police Complaints Commission,24/08/2010,Facilities,IPCC - Independent Police Complaints Commission,EMCOR FACILITIES SERVICES LTD,RCT0033592,"38,312.84"
Home Office,IPCC - Independent Police Complaints Commission,24/08/2010,Facilities,IPCC - Independent Police Complaints Commission,HARTNELL TAYLOR COOK LLP,RCT0033594,"48,589.93"
Home Office,IPS - Identity & Passport Service,03/08/2010,Contact Centre,IPS - Identity & Passport Service,MM TELEPERFORMANCE,135060,"178,033.51"
Home Office,IPS - Identity & Passport Service,03/08/2010,Contracted Staff,IPS - Identity & Passport Service,Capita Resourcing Ltd,135047,"48,244.70"
Home Office,IPS - Identity & Passport Service,03/08/2010,Other Government Departments,IPS - Identity & Passport Service,HOME OFFICE - AFU CASH MANAGEM,135058,"36,386.52"
Home Office,IPS - Identity & Passport Service,03/08/2010,Passport Printing,IPS - Identity & Passport Service,Security Printing Systems Ltd,135057,"56,562.99"
Home Office,IPS - Identity & Passport Service,03/08/2010,Software & Licenses,IPS - Identity & Passport Service,CSC COMPUTER SCIENCES LTD,135052,"2,041,548.15"
Home Office,IPS - Identity & Passport Service,03/08/2010,Translation Services and Inter,IPS - Identity & Passport Service,PRESTIGE NETWORK LTD,135065,"34,114.77"
Home Office,IPS - Identity & Passport Service,06/08/2010,Accommodation,IPS - Identity & Passport Service,Audit Commission,135073,"28,728.70"
Home Office,IPS - Identity & Passport Service,06/08/2010,Contracted Staff,IPS - Identity & Passport Service,Capita Resourcing Ltd,135080,"144,988.92"
Home Office,IPS - Identity & Passport Service,06/08/2010,Facilities Management,IPS - Identity & Passport Service,Siemens Real Estate Ltd,135110,"39,065.23"
Home Office,IPS - Identity & Passport Service,06/08/2010,Office Furniture,IPS - Identity & Passport Service,SENATOR INTERNATIONAL LTD,135107,"45,741.91"
Home Office,IPS - Identity & Passport Service,06/08/2010,Passport Printing,IPS - Identity & Passport Service,Security Printing Systems Ltd,135095,"1,720,377.99"
Home Office,IPS - Identity & Passport Service,06/08/2010,Passport Processing,IPS - Identity & Passport Service,Siemens Business Services Ltd,135109,"63,872.82"
Home Office,IPS - Identity & Passport Service,06/08/2010,Software & Licenses,IPS - Identity & Passport Service,CSC COMPUTER SCIENCES LTD,135086,"2,626,302.84"
Home Office,IPS - Identity & Passport Service,10/08/2010,Consultancy & Professional Ser,IPS - Identity & Passport Service,DELOITTE MCS LTD,135127,"110,802.03"
Home Office,IPS - Identity & Passport Service,10/08/2010,Consultancy & Professional Ser,IPS - Identity & Passport Service,ERNST & YOUNG LLP,135130,"234,596.44"
Home Office,IPS - Identity & Passport Service,10/08/2010,Contracted Staff,IPS - Identity & Passport Service,Capita Resourcing Ltd,135120,"130,705.54"
Home Office,IPS - Identity & Passport Service,10/08/2010,Facilities Management,IPS - Identity & Passport Service,Siemens Real Estate Ltd,135143,"58,955.30"
Home Office,IPS - Identity & Passport Service,10/08/2010,IT Services,IPS - Identity & Passport Service,Computercenter HQ,135122,"56,274.20"
Home Office,IPS - Identity & Passport Service,10/08/2010,Passport Printing,IPS - Identity & Passport Service,Security Printing Systems Ltd,135132,"57,698.29"
Home Office,IPS - Identity & Passport Service,10/08/2010,Passport Stationery,IPS - Identity & Passport Service,ADARE LTD,135116,"35,018.75"
Home Office,IPS - Identity & Passport Service,10/08/2010,Passports - Secure Mail,IPS - Identity & Passport Service,SECURE MAIL SERVICES LIMITED,135144,"1,209,532.07"
Home Office,IPS - Identity & Passport Service,10/08/2010,Software & Licenses,IPS - Identity & Passport Service,CSC COMPUTER SCIENCES LTD,135126,"1,413,576.76"
Home Office,IPS - Identity & Passport Service,13/08/2010,Accommodation,IPS - Identity & Passport Service,Mapeley ABI Provider Limited,135175,"38,127.59"
Home Office,IPS - Identity & Passport Service,13/08/2010,Contact Centre,IPS - Identity & Passport Service,MM TELEPERFORMANCE,135177,"898,820.82"
Home Office,IPS - Identity & Passport Service,13/08/2010,Contracted Staff,IPS - Identity & Passport Service,Capita Resourcing Ltd,135156,"186,382.71"
Home Office,IPS - Identity & Passport Service,13/08/2010,IT Development,IPS - Identity & Passport Service,IBM UNITED KINGDOM LIMITED,135171,"694,235.83"
Home Office,IPS - Identity & Passport Service,13/08/2010,Legal Services,IPS - Identity & Passport Service,The Treasury Solicitor,135189,"69,615.69"
Home Office,IPS - Identity & Passport Service,13/08/2010,Passport Printing,IPS - Identity & Passport Service,Security Printing Systems Ltd,135169,"1,036,247.43"
Home Office,IPS - Identity & Passport Service,13/08/2010,Passport Stationery,IPS - Identity & Passport Service,ADARE LTD,135147,"162,461.23"
Home Office,IPS - Identity & Passport Service,17/08/2010,Accommodation,IPS - Identity & Passport Service,Benefits Agency,135197,"113,015.72"
Home Office,IPS - Identity & Passport Service,17/08/2010,Contracted Staff,IPS - Identity & Passport Service,Capita Resourcing Ltd,135199,"51,429.77"
Home Office,IPS - Identity & Passport Service,17/08/2010,Facilities Management,IPS - Identity & Passport Service,Siemens Real Estate Ltd,135225,"294,447.22"
Home Office,IPS - Identity & Passport Service,17/08/2010,Market Research,IPS - Identity & Passport Service,Jigsaw Research Limited,135215,"34,368.75"
Home Office,IPS - Identity & Passport Service,17/08/2010,Passport Printing,IPS - Identity & Passport Service,Security Printing Systems Ltd,135212,"482,416.99"
Home Office,IPS - Identity & Passport Service,17/08/2010,Passports - Secure Mail,IPS - Identity & Passport Service,SECURE MAIL SERVICES LIMITED,135226,"881,339.12"
Home Office,IPS - Identity & Passport Service,17/08/2010,Software & Licenses,IPS - Identity & Passport Service,CSC COMPUTER SCIENCES LTD,135204,"196,297.86"
Home Office,IPS - Identity & Passport Service,20/08/2010,Brochures,IPS - Identity & Passport Service,RUFUS LEONARD LTD,135288,"44,798.29"
Home Office,IPS - Identity & Passport Service,20/08/2010,Consultancy & Professional Ser,IPS - Identity & Passport Service,ERNST & YOUNG LLP,135244,"78,496.11"
Home Office,IPS - Identity & Passport Service,20/08/2010,Contracted Staff,IPS - Identity & Passport Service,Capita Resourcing Ltd,135232,"54,956.85"
Home Office,IPS - Identity & Passport Service,20/08/2010,Passport Printing,IPS - Identity & Passport Service,Security Printing Systems Ltd,135280,"1,204,950.01"
Home Office,IPS - Identity & Passport Service,20/08/2010,Software & Licenses,IPS - Identity & Passport Service,CSC COMPUTER SCIENCES LTD,135238,"1,125,787.49"
Home Office,IPS - Identity & Passport Service,20/08/2010,Train/Air Travel,IPS - Identity & Passport Service,Harry Weeks Executive Travel,135279,"61,573.16"
Home Office,IPS - Identity & Passport Service,20/08/2010,Translation Services and Inter,IPS - Identity & Passport Service,PRESTIGE NETWORK LTD,135285,"32,113.71"
Home Office,IPS - Identity & Passport Service,24/08/2010,Accommodation,IPS - Identity & Passport Service,WATES INTERIORS LTD,135322,"256,601.08"
Home Office,IPS - Identity & Passport Service,24/08/2010,Contact Centre,IPS - Identity & Passport Service,MM TELEPERFORMANCE,135314,"1,105,962.47"
Home Office,IPS - Identity & Passport Service,24/08/2010,Contracted Staff,IPS - Identity & Passport Service,Capita Resourcing Ltd,135297,"35,209.46"
Home Office,IPS - Identity & Passport Service,24/08/2010,Facilities Management,IPS - Identity & Passport Service,Drivers Jonas,135303,"38,957.90"
Home Office,IPS - Identity & Passport Service,24/08/2010,Other Government Departments,IPS - Identity & Passport Service,HOME OFFICE - AFU CASH MANAGEM,135311,"31,487.19"
Home Office,IPS - Identity & Passport Service,24/08/2010,Passport Printing,IPS - Identity & Passport Service,Security Printing Systems Ltd,135310,"160,988.33"
Home Office,IPS - Identity & Passport Service,24/08/2010,Software & Licenses,IPS - Identity & Passport Service,CSC COMPUTER SCIENCES LTD,135302,"2,537,846.94"
Home Office,IPS - Identity & Passport Service,27/08/2010,Accommodation,IPS - Identity & Passport Service,LAMBERT SMITH HAMPTON,135345,"45,355.88"
Home Office,IPS - Identity & Passport Service,27/08/2010,Accommodation,IPS - Identity & Passport Service,WATES INTERIORS LTD,135362,"74,146.78"
Home Office,IPS - Identity & Passport Service,27/08/2010,Contracted Staff,IPS - Identity & Passport Service,Capita Resourcing Ltd,135328,"201,206.64"
Home Office,IPS - Identity & Passport Service,27/08/2010,IT Development,IPS - Identity & Passport Service,Thales,135359,"555,638.70"
Home Office,IPS - Identity & Passport Service,27/08/2010,IT Services,IPS - Identity & Passport Service,Computercenter HQ,135332,"42,385.57"
Home Office,IPS - Identity & Passport Service,27/08/2010,Office Furniture,IPS - Identity & Passport Service,SENATOR INTERNATIONAL LTD,135355,"270,739.81"
Home Office,IPS - Identity & Passport Service,27/08/2010,Passport Printing,IPS - Identity & Passport Service,Security Printing Systems Ltd,135344,"1,252,514.67"
Home Office,IPS - Identity & Passport Service,31/08/2010,Consultancy & Professional Ser,IPS - Identity & Passport Service,DELOITTE MCS LTD,135375,"174,181.61"
Home Office,IPS - Identity & Passport Service,31/08/2010,Contracted Staff,IPS - Identity & Passport Service,Capita Resourcing Ltd,135370,"37,578.27"
Home Office,IPS - Identity & Passport Service,31/08/2010,Hotels,IPS - Identity & Passport Service,Expotel Hotel Reservations Ltd,135377,"31,087.07"
Home Office,IPS - Identity & Passport Service,31/08/2010,Translation Services and Inter,IPS - Identity & Passport Service,PRESTIGE NETWORK LTD,135389,"27,140.05"
Home Office,ISA - Independent Safeguarding Authority,18/08/2010,External Audit Fees,ISA - Independent Safeguarding Authority,National Audit Office,2636,"35,000.00"
Home Office,ISA - Independent Safeguarding Authority,25/08/2010,Training Costs Operations,ISA - Independent Safeguarding Authority,UNIVERSITY OF TEESSIDE,2662,"48,426.00"
Home Office,NPIA - National Policing Improvement Agency,02/08/2010,Telephone charges,ICTS,OGC Buying Solutions,1900056786,"198,948.76"
Home Office,NPIA - National Policing Improvement Agency,02/08/2010,Land and Buildings maintenance,Resources Directorate,Building Management Systems,1900056833,"60,296.40"
Home Office,NPIA - National Policing Improvement Agency,02/08/2010,Rent of telephone exchange,ICTS,Cable & Wireless Communications,1900056837,"23,934.38"
Home Office,NPIA - National Policing Improvement Agency,02/08/2010,Rent of telephone exchange,ICTS,Cable & Wireless Communications,1900056838,"23,934.38"
Home Office,NPIA - National Policing Improvement Agency,02/08/2010,Rent of telephone exchange,ICTS,Cable & Wireless Communications,1900056839,"23,934.38"
Home Office,NPIA - National Policing Improvement Agency,02/08/2010,Airwave Core Service Charge,Operations Directorate,Airwave Solutions Ltd,5100044469,"14,764,483.34"
Home Office,NPIA - National Policing Improvement Agency,02/08/2010,Airwave Core Service Charge,Operations Directorate,Airwave Solutions Ltd,5100044470,"224,932.61"
Home Office,NPIA - National Policing Improvement Agency,02/08/2010,Other govt departments secondees - Basic salaries,Policing Policy and Practice Directorate ,Department for Children,5100044542,"24,401.49"
Home Office,NPIA - National Policing Improvement Agency,02/08/2010,Other govt departments secondees - Basic salaries,Policing Policy and Practice Directorate ,Department for Children,5100044542,"2,532.51"
Home Office,NPIA - National Policing Improvement Agency,02/08/2010,Other govt departments secondees - Basic salaries,Policing Policy and Practice Directorate ,Department for Children,5100044542,"5,771.25"
Home Office,NPIA - National Policing Improvement Agency,03/08/2010,Electricity,Resources Directorate,EDF Energy Exeter,1900056547,"40,329.52"
Home Office,NPIA - National Policing Improvement Agency,03/08/2010,Electricity,Resources Directorate,EDF Energy Exeter,1900056547,"16,494.13"
Home Office,NPIA - National Policing Improvement Agency,03/08/2010,Electricity,Resources Directorate,EDF Energy Exeter,1900056547,"4,091.58"
Home Office,NPIA - National Policing Improvement Agency,03/08/2010,Electricity,Resources Directorate,EDF Energy Exeter,1900056547,115.24
Home Office,NPIA - National Policing Improvement Agency,03/08/2010,Electricity,Resources Directorate,EDF Energy Exeter,1900056547,"3,476.11"
Home Office,NPIA - National Policing Improvement Agency,03/08/2010,Electricity,Resources Directorate,EDF Energy Exeter,1900056547,"15,307.27"
Home Office,NPIA - National Policing Improvement Agency,04/08/2010,Land and Buildings maintenance,Resources Directorate,Reliance Integrated Services Ltd,1900056904,"40,024.58"
Home Office,NPIA - National Policing Improvement Agency,04/08/2010,Land and Buildings maintenance,Resources Directorate,Drivers Jonas,1900056924,"54,937.43"
Home Office,NPIA - National Policing Improvement Agency,04/08/2010,IT Hire of equipment,Operations Directorate,SunGard Public Sector Ltd,5100044869,"19,749.08"
Home Office,NPIA - National Policing Improvement Agency,04/08/2010,IT Hire of equipment,Operations Directorate,SunGard Public Sector Ltd,5100044869,"22,476.72"
Home Office,NPIA - National Policing Improvement Agency,04/08/2010,IT Hire of equipment,Operations Directorate,SunGard Public Sector Ltd,5100044869,"14,138.46"
Home Office,NPIA - National Policing Improvement Agency,04/08/2010,IT software,ICTS,Specialist Computer Centres PLC,5100044911,"11,148.50"
Home Office,NPIA - National Policing Improvement Agency,04/08/2010,IT software,ICTS,Specialist Computer Centres PLC,5100044911,195.1
Home Office,NPIA - National Policing Improvement Agency,04/08/2010,IT software,ICTS,Specialist Computer Centres PLC,5100044911,"8,373.58"
Home Office,NPIA - National Policing Improvement Agency,04/08/2010,IT software,ICTS,Specialist Computer Centres PLC,5100044911,146.54
Home Office,NPIA - National Policing Improvement Agency,04/08/2010,IT software,ICTS,Specialist Computer Centres PLC,5100044911,"3,494.08"
Home Office,NPIA - National Policing Improvement Agency,04/08/2010,IT software,ICTS,Specialist Computer Centres PLC,5100044911,61.14
Home Office,NPIA - National Policing Improvement Agency,04/08/2010,IT software,ICTS,Specialist Computer Centres PLC,5100044911,"1,790.27"
Home Office,NPIA - National Policing Improvement Agency,04/08/2010,IT software,ICTS,Specialist Computer Centres PLC,5100044911,31.33
Home Office,NPIA - National Policing Improvement Agency,04/08/2010,IT software,ICTS,Specialist Computer Centres PLC,5100044911,"3,127.89"
Home Office,NPIA - National Policing Improvement Agency,04/08/2010,IT software,ICTS,Specialist Computer Centres PLC,5100044911,54.73
Home Office,NPIA - National Policing Improvement Agency,04/08/2010,IT software,ICTS,Specialist Computer Centres PLC,5100044911,"1,322.36"
Home Office,NPIA - National Policing Improvement Agency,04/08/2010,IT software,ICTS,Specialist Computer Centres PLC,5100044911,23.15
Home Office,NPIA - National Policing Improvement Agency,04/08/2010,IT Managed Services,ICTS,Northgate Information Solutions UK,5100044920,"78,750.00"
Home Office,NPIA - National Policing Improvement Agency,04/08/2010,Legal fees,ICTS,Field Fisher Waterhouse LLP,5100044932,"33,132.45"
Home Office,NPIA - National Policing Improvement Agency,04/08/2010,Contractors,ICTS,Price Waterhouse Coopers,5100044952,"59,400.00"
Home Office,NPIA - National Policing Improvement Agency,04/08/2010,Contractors,ICTS,Price Waterhouse Coopers,5100044955,"81,000.00"
Home Office,NPIA - National Policing Improvement Agency,04/08/2010,Contractors,ICTS,Price Waterhouse Coopers,5100044957,"199,800.00"
Home Office,NPIA - National Policing Improvement Agency,04/08/2010,Contractors,ICTS,Price Waterhouse Coopers,5100044962,"102,660.00"
Home Office,NPIA - National Policing Improvement Agency,04/08/2010,IT Managed Services,ICTS,Siemens Enterprise Comm Ltd,5100044970,"70,000.00"
Home Office,NPIA - National Policing Improvement Agency,04/08/2010,Contractors,ICTS,Price Waterhouse Coopers,5100044980,"307,800.00"
Home Office,NPIA - National Policing Improvement Agency,05/08/2010,Agency staff,CEO Directorate,Reed Employment plc,1900056944,712.56
Home Office,NPIA - National Policing Improvement Agency,05/08/2010,Agency staff,CEO Directorate,Reed Employment plc,1900056944,744.35
Home Office,NPIA - National Policing Improvement Agency,05/08/2010,Agency staff,Policing Policy and Practice Directorate ,Reed Employment plc,1900056944,"3,599.06"
Home Office,NPIA - National Policing Improvement Agency,05/08/2010,Agency staff,Policing Policy and Practice Directorate ,Reed Employment plc,1900056944,400.02
Home Office,NPIA - National Policing Improvement Agency,05/08/2010,Agency staff,CEO Directorate,Reed Employment plc,1900056944,592.08
Home Office,NPIA - National Policing Improvement Agency,05/08/2010,Agency staff,Policing Policy and Practice Directorate ,Reed Employment plc,1900056944,544.72
Home Office,NPIA - National Policing Improvement Agency,05/08/2010,Agency staff,People & Development Directorate,Reed Employment plc,1900056944,"2,328.74"
Home Office,NPIA - National Policing Improvement Agency,05/08/2010,Agency staff,People & Development Directorate,Reed Employment plc,1900056944,804.98
Home Office,NPIA - National Policing Improvement Agency,05/08/2010,Agency staff,People & Development Directorate,Reed Employment plc,1900056944,827.6
Home Office,NPIA - National Policing Improvement Agency,05/08/2010,Agency staff,People & Development Directorate,Reed Employment plc,1900056944,435
Home Office,NPIA - National Policing Improvement Agency,05/08/2010,Agency staff,People & Development Directorate,Reed Employment plc,1900056944,580.25
Home Office,NPIA - National Policing Improvement Agency,05/08/2010,Agency staff,People & Development Directorate,Reed Employment plc,1900056944,523.25
Home Office,NPIA - National Policing Improvement Agency,05/08/2010,Agency staff,People & Development Directorate,Reed Employment plc,1900056944,309.96
Home Office,NPIA - National Policing Improvement Agency,05/08/2010,Agency staff,People & Development Directorate,Reed Employment plc,1900056944,761.09
Home Office,NPIA - National Policing Improvement Agency,05/08/2010,Agency staff,Resources Directorate,Reed Employment plc,1900056944,482.97
Home Office,NPIA - National Policing Improvement Agency,05/08/2010,Agency staff,CEO Directorate,Reed Employment plc,1900056944,"1,863.41"
Home Office,NPIA - National Policing Improvement Agency,05/08/2010,Agency staff,Resources Directorate,Reed Employment plc,1900056944,"1,075.82"
Home Office,NPIA - National Policing Improvement Agency,05/08/2010,Agency staff,Resources Directorate,Reed Employment plc,1900056944,599.08
Home Office,NPIA - National Policing Improvement Agency,05/08/2010,Agency staff,Resources Directorate,Reed Employment plc,1900056944,820.29
Home Office,NPIA - National Policing Improvement Agency,05/08/2010,Agency staff,Resources Directorate,Reed Employment plc,1900056944,426.31
Home Office,NPIA - National Policing Improvement Agency,05/08/2010,Agency staff,Resources Directorate,Reed Employment plc,1900056944,"1,715.52"
Home Office,NPIA - National Policing Improvement Agency,05/08/2010,Agency staff,Resources Directorate,Reed Employment plc,1900056944,720.51
Home Office,NPIA - National Policing Improvement Agency,05/08/2010,Agency staff,Resources Directorate,Reed Employment plc,1900056944,738.18
Home Office,NPIA - National Policing Improvement Agency,05/08/2010,Agency staff,CEO Directorate,Reed Employment plc,1900056944,486.3
Home Office,NPIA - National Policing Improvement Agency,05/08/2010,Agency staff,Resources Directorate,Reed Employment plc,1900056944,462.7
Home Office,NPIA - National Policing Improvement Agency,05/08/2010,Agency staff,ICTS,Reed Employment plc,1900056944,442.92
Home Office,NPIA - National Policing Improvement Agency,05/08/2010,Agency staff,Resources Directorate,Reed Employment plc,1900056944,511.61
Home Office,NPIA - National Policing Improvement Agency,05/08/2010,Agency staff,ICTS,Reed Employment plc,1900056944,685.58
Home Office,NPIA - National Policing Improvement Agency,09/08/2010,IT Managed Services,People & Development Directorate,Airwave Solutions Ltd,5100044675,"57,601.03"
Home Office,NPIA - National Policing Improvement Agency,09/08/2010,IT software,ICTS,Northgate Information Solutions UK,5100044912,"142,291.98"
Home Office,NPIA - National Policing Improvement Agency,09/08/2010,IT software,ICTS,Northgate Information Solutions UK,5100044912,"332,014.62"
Home Office,NPIA - National Policing Improvement Agency,09/08/2010,IT software,ICTS,Northgate Information Solutions UK,5100044912,-0.6
Home Office,NPIA - National Policing Improvement Agency,09/08/2010,Other consultancy,ICTS,Price Waterhouse Coopers,5100044984,"142,500.00"
Home Office,NPIA - National Policing Improvement Agency,09/08/2010,Other consultancy,ICTS,Price Waterhouse Coopers,5100044984,"142,500.00"
Home Office,NPIA - National Policing Improvement Agency,09/08/2010,IT maintenance,Operations Directorate,Fujitsu (FTS) Limited,5100045104,"25,988.93"
Home Office,NPIA - National Policing Improvement Agency,09/08/2010,IT maintenance,Operations Directorate,Fujitsu (FTS) Limited,5100045104,"4,563.59"
Home Office,NPIA - National Policing Improvement Agency,09/08/2010,Legal fees,ICTS,Field Fisher Waterhouse LLP,5100045108,"26,582.95"
Home Office,NPIA - National Policing Improvement Agency,09/08/2010,Legal fees,ICTS,Field Fisher Waterhouse LLP,5100045108,"6,203.37"
Home Office,NPIA - National Policing Improvement Agency,11/08/2010,IT Managed Services,Resources Directorate,Bravo Solutions UK,5100043200,"46,156.68"
Home Office,NPIA - National Policing Improvement Agency,11/08/2010,IT Managed Services,Resources Directorate,Bravo Solutions UK,5100043200,815.76
Home Office,NPIA - National Policing Improvement Agency,11/08/2010,IT Managed Services,Resources Directorate,Bravo Solutions UK,5100043200,"7,152.94"
Home Office,NPIA - National Policing Improvement Agency,11/08/2010,IT Managed Services,Resources Directorate,Bravo Solutions UK,5100043200,125.18
Home Office,NPIA - National Policing Improvement Agency,11/08/2010,IT consultancy,Policing Policy and Practice Directorate ,Fujitsu (FTS) Limited,5100044635,"13,558.82"
Home Office,NPIA - National Policing Improvement Agency,11/08/2010,IT Information Support,Policing Policy and Practice Directorate ,Fujitsu (FTS) Limited,5100044635,784.98
Home Office,NPIA - National Policing Improvement Agency,11/08/2010,IT consultancy,Policing Policy and Practice Directorate ,Fujitsu (FTS) Limited,5100044635,"13,558.82"
Home Office,NPIA - National Policing Improvement Agency,11/08/2010,IT Information Support,Policing Policy and Practice Directorate ,Fujitsu (FTS) Limited,5100044635,784.98
Home Office,NPIA - National Policing Improvement Agency,11/08/2010,IT Managed Services,ICTS,Siemens Enterprise Comm Ltd,5100045212,"840,000.00"
Home Office,NPIA - National Policing Improvement Agency,13/08/2010,IT software,People & Development Directorate,Specialist Computer Centres PLC,5100044725,"39,714.30"
Home Office,NPIA - National Policing Improvement Agency,13/08/2010,FM Costs,Operations Directorate,Cable & Wireless Communications,5100045052,"237,577.06"
Home Office,NPIA - National Policing Improvement Agency,13/08/2010,IT Managed Services,ICTS,Siemens Enterprise Comm Ltd,5100045267,"34,635.00"
Home Office,NPIA - National Policing Improvement Agency,13/08/2010,IT Managed Services,ICTS,Siemens Enterprise Comm Ltd,5100045292,"50,000.00"
Home Office,NPIA - National Policing Improvement Agency,13/08/2010,IT Managed Services,ICTS,Siemens Enterprise Comm Ltd,5100045292,"16,917.84"
Home Office,NPIA - National Policing Improvement Agency,16/08/2010,Agency staff,CEO Directorate,Reed Employment plc,1900057102,644.47
Home Office,NPIA - National Policing Improvement Agency,16/08/2010,Agency staff,CEO Directorate,Reed Employment plc,1900057102,587.89
Home Office,NPIA - National Policing Improvement Agency,16/08/2010,Agency staff,Policing Policy and Practice Directorate ,Reed Employment plc,1900057102,"1,799.53"
Home Office,NPIA - National Policing Improvement Agency,16/08/2010,Agency staff,ICTS,Reed Employment plc,1900057102,"6,630.00"
Home Office,NPIA - National Policing Improvement Agency,16/08/2010,Agency staff,CEO Directorate,Reed Employment plc,1900057102,522.25
Home Office,NPIA - National Policing Improvement Agency,16/08/2010,Agency staff,Policing Policy and Practice Directorate ,Reed Employment plc,1900057102,514.56
Home Office,NPIA - National Policing Improvement Agency,16/08/2010,Agency staff,People & Development Directorate,Reed Employment plc,1900057102,"2,784.38"
Home Office,NPIA - National Policing Improvement Agency,16/08/2010,Agency staff,People & Development Directorate,Reed Employment plc,1900057102,810.63
Home Office,NPIA - National Policing Improvement Agency,16/08/2010,Agency staff,People & Development Directorate,Reed Employment plc,1900057102,844.57
Home Office,NPIA - National Policing Improvement Agency,16/08/2010,Agency staff,People & Development Directorate,Reed Employment plc,1900057102,709.76
Home Office,NPIA - National Policing Improvement Agency,16/08/2010,Agency staff,People & Development Directorate,Reed Employment plc,1900057102,624.38
Home Office,NPIA - National Policing Improvement Agency,16/08/2010,Agency staff,People & Development Directorate,Reed Employment plc,1900057102,523.25
Home Office,NPIA - National Policing Improvement Agency,16/08/2010,Agency staff,People & Development Directorate,Reed Employment plc,1900057102,420.28
Home Office,NPIA - National Policing Improvement Agency,16/08/2010,Agency staff,People & Development Directorate,Reed Employment plc,1900057102,482.2
Home Office,NPIA - National Policing Improvement Agency,16/08/2010,Agency staff,Resources Directorate,Reed Employment plc,1900057102,199.37
Home Office,NPIA - National Policing Improvement Agency,16/08/2010,Agency staff,CEO Directorate,Reed Employment plc,1900057102,"1,140.51"
Home Office,NPIA - National Policing Improvement Agency,16/08/2010,Agency staff,Resources Directorate,Reed Employment plc,1900057102,"1,075.82"
Home Office,NPIA - National Policing Improvement Agency,16/08/2010,Agency staff,Resources Directorate,Reed Employment plc,1900057102,599.08
Home Office,NPIA - National Policing Improvement Agency,16/08/2010,Agency staff,Resources Directorate,Reed Employment plc,1900057102,"1,055.22"
Home Office,NPIA - National Policing Improvement Agency,16/08/2010,Agency staff,Resources Directorate,Reed Employment plc,1900057102,315.7
Home Office,NPIA - National Policing Improvement Agency,16/08/2010,Agency staff,Resources Directorate,Reed Employment plc,1900057102,"1,715.52"
Home Office,NPIA - National Policing Improvement Agency,16/08/2010,Agency staff,Resources Directorate,Reed Employment plc,1900057102,720.51
Home Office,NPIA - National Policing Improvement Agency,16/08/2010,Agency staff,Resources Directorate,Reed Employment plc,1900057102,738.18
Home Office,NPIA - National Policing Improvement Agency,16/08/2010,Agency staff,CEO Directorate,Reed Employment plc,1900057102,468.24
Home Office,NPIA - National Policing Improvement Agency,16/08/2010,Agency staff,Resources Directorate,Reed Employment plc,1900057102,469.47
Home Office,NPIA - National Policing Improvement Agency,16/08/2010,Agency staff,ICTS,Reed Employment plc,1900057102,526.06
Home Office,NPIA - National Policing Improvement Agency,16/08/2010,Agency staff,Resources Directorate,Reed Employment plc,1900057102,522.44
Home Office,NPIA - National Policing Improvement Agency,16/08/2010,Agency staff,ICTS,Reed Employment plc,1900057102,712.42
Home Office,NPIA - National Policing Improvement Agency,18/08/2010,Telephone charges,ICTS,BT Plc,1900057142,"40,681.39"
Home Office,NPIA - National Policing Improvement Agency,18/08/2010,FM Costs,Resources Directorate,Wyboston Lakes Ltd,5100044853,"56,401.63"
Home Office,NPIA - National Policing Improvement Agency,18/08/2010,FM Costs,Resources Directorate,Wyboston Lakes Ltd,5100044853,987.03
Home Office,NPIA - National Policing Improvement Agency,20/08/2010,Hospitality,Resources Directorate,Reliance Integrated Services Ltd,5100042935,"22,777.77"
Home Office,NPIA - National Policing Improvement Agency,20/08/2010,Hospitality,Resources Directorate,Reliance Integrated Services Ltd,5100042935,398.61
Home Office,NPIA - National Policing Improvement Agency,20/08/2010,FM Costs,Resources Directorate,Wyboston Lakes Ltd,5100044772,"109,918.47"
Home Office,NPIA - National Policing Improvement Agency,20/08/2010,FM Costs,Resources Directorate,Wyboston Lakes Ltd,5100044772,"19,235.73"
Home Office,NPIA - National Policing Improvement Agency,23/08/2010,IT Managed Services,ICTS,Siemens Enterprise Comm Ltd,1700003781,"-221,799.75"
Home Office,NPIA - National Policing Improvement Agency,23/08/2010,IT Managed Services,ICTS,Siemens Enterprise Comm Ltd,1900057205,"221,799.75"
Home Office,NPIA - National Policing Improvement Agency,23/08/2010,Agency staff,ICTS,AMTEC Consulting PLC,5100045599,"22,560.00"
Home Office,NPIA - National Policing Improvement Agency,26/08/2010,IT Managed Services,ICTS,Siemens Enterprise Comm Ltd,5100044811,"73,856.00"
Home Office,NPIA - National Policing Improvement Agency,26/08/2010,IT Managed Services,ICTS,Siemens Enterprise Comm Ltd,5100044811,-23.3
Home Office,NPIA - National Policing Improvement Agency,26/08/2010,Airwave Cluster Hot Standby Service Charge,Operations Directorate,Airwave Solutions Ltd,5100045467,"88,333.33"
Home Office,NPIA - National Policing Improvement Agency,26/08/2010,Stamford Service Charge,Operations Directorate,Airwave Solutions Ltd,5100045469,"110,668.96"
Home Office,NPIA - National Policing Improvement Agency,26/08/2010,Airwave in London Underground Service Charge,Operations Directorate,Airwave Solutions Ltd,5100045469,"68,641.15"
Home Office,NPIA - National Policing Improvement Agency,26/08/2010,Airwave in London Underground Service Charge,Operations Directorate,Airwave Solutions Ltd,5100045469,"21,098.56"
Home Office,NPIA - National Policing Improvement Agency,26/08/2010,Schengen Service Charge,Operations Directorate,Airwave Solutions Ltd,5100045469,"8,255.81"
Home Office,NPIA - National Policing Improvement Agency,26/08/2010,Firewall Service Charge,Operations Directorate,Airwave Solutions Ltd,5100045469,"25,065.75"
Home Office,NPIA - National Policing Improvement Agency,26/08/2010,Airwave Cluster Hot Standby Service Charge,Operations Directorate,Airwave Solutions Ltd,5100045470,"636,906.75"
Home Office,NPIA - National Policing Improvement Agency,26/08/2010,Airwave Channel Tunnel Service Charge,Operations Directorate,Airwave Solutions Ltd,5100045471,"24,335.91"
Home Office,NPIA - National Policing Improvement Agency,26/08/2010,Airwave in London Underground Service Charge,Operations Directorate,Airwave Solutions Ltd,5100045472,"366,626.25"
Home Office,NPIA - National Policing Improvement Agency,26/08/2010,Airwave Ground Based Network Resilience Serv. Chg,Operations Directorate,Airwave Solutions Ltd,5100045473,"588,059.27"
Home Office,NPIA - National Policing Improvement Agency,26/08/2010,IT consultancy,Policing Policy and Practice Directorate ,Steria Ltd,5100045625,"52,902.16"
Home Office,NPIA - National Policing Improvement Agency,26/08/2010,IT consultancy,Policing Policy and Practice Directorate ,Steria Ltd,5100045628,"23,776.48"
Home Office,NPIA - National Policing Improvement Agency,26/08/2010,IT Information Support,Policing Policy and Practice Directorate ,Steria Ltd,5100045629,"26,550.55"
Home Office,NPIA - National Policing Improvement Agency,26/08/2010,IT consultancy,Policing Policy and Practice Directorate ,Steria Ltd,5100045630,"33,082.30"
Home Office,NPIA - National Policing Improvement Agency,26/08/2010,IT Managed Services,ICTS,Siemens Enterprise Comm Ltd,5100045752,"148,560.91"
Home Office,NPIA - National Policing Improvement Agency,26/08/2010,IT Managed Services,ICTS,Siemens Enterprise Comm Ltd,5100045752,-593.86
Home Office,Home Office,03/08/2010,"Clothes, shoes & Personal Care.Non protective - PROG",OSCT - Office of Security and Counter-Terrorism,REMPLOY LTD,1776593,"27,491.46"
Home Office,Home Office,03/08/2010,Storage & Mail Services.Messenger & Reception Services,OSCT - Office of Security and Counter-Terrorism,CT CENTRE (MOD) T/A DSTL,1777811,"524,070.83"
Home Office,Home Office,03/08/2010,Storage & Mail Services.Messenger & Reception Services,OSCT - Office of Security and Counter-Terrorism,CT CENTRE (MOD) T/A DSTL,1777814,"509,301.00"
Home Office,Home Office,09/08/2010,Professional & Admin Services.Seconded in Staff costs - PROG,OSCT - Office of Security and Counter-Terrorism,METROPOLITAN POLICE SERVICE,1780882,"29,940.11"
Home Office,Home Office,11/08/2010,Healthcare Services.Healthcare Services - PROG,OSCT - Office of Security and Counter-Terrorism,CT CENTRE (MOD) T/A DSTL,1780541,"149,875.03"
Home Office,Home Office,17/08/2010,Professional & Admin Services.Seconded in Staff costs - PROG,OSCT - Office of Security and Counter-Terrorism,METROPOLITAN POLICE AUTHORITY,1785490,"97,100.04"
Home Office,Home Office,18/08/2010,Professional & Admin Services.Consultancy - Advice - PROG,OSCT - Office of Security and Counter-Terrorism,CRIMINAL RECORDS BUREAU,1703430,"26,170.00"
Home Office,Home Office,20/08/2010,Professional & Admin Services.Consultancy - Advice - PROG,OSCT - Office of Security and Counter-Terrorism,CT CENTRE (MOD) T/A DSTL,1790533,"58,750.00"
Home Office,Home Office,24/08/2010,Professional & Admin Services.Seconded in Staff costs - PROG,OSCT - Office of Security and Counter-Terrorism,METROPOLITAN POLICE SERVICE,1791860,"30,600.21"
Home Office,Home Office,26/08/2010,Professional & Admin Services.Consultant - Imp & Del - PROG,OSCT - Office of Security and Counter-Terrorism,KPMG,1793645,"93,915.40"
Home Office,Home Office,26/08/2010,Professional & Admin Services.Consultant - Imp & Del - PROG,OSCT - Office of Security and Counter-Terrorism,KPMG,1793647,"83,494.33"
Home Office,Home Office,27/08/2010,IT & Telecommunications Equip.Hardware adapters - ADMN,OSCT - Office of Security and Counter-Terrorism,FUJITSU SERVICES (ALCEDO) LTD,1778808,"56,393.93"
Home Office,SIA - Security Industry Authority,11/08/2010,CRB Disclosures,Licensing,CRB,CCRB01,"264,992.00"
Home Office,SIA - Security Industry Authority,18/08/2010,Research,Strategy & Change Management,COI,CCOI01,"56,928.75"
Home Office,SOCA - Serious Organised Crime Agency,02/08/2010,Professional Services and Fees,Corporate Services,BADENOCH & CLARK LIMITED,47563,"13,060.14"
Home Office,SOCA - Serious Organised Crime Agency,02/08/2010,Professional Services and Fees,Investment Board,BADENOCH & CLARK LIMITED,47563,"23,677.71"
Home Office,SOCA - Serious Organised Crime Agency,02/08/2010,Salaries and Allowances - temporarily employed,Corp Finance,BADENOCH & CLARK LIMITED,47563,"11,934.73"
Home Office,SOCA - Serious Organised Crime Agency,02/08/2010,Professional Services and Fees,Projects,BADENOCH & CLARK LIMITED,47563,"28,064.44"
Home Office,SOCA - Serious Organised Crime Agency,03/08/2010,Operational and Communications Costs,Corporate Services,CABLE & WIRELESS COMMS.,47857,"79,041.12"
Home Office,SOCA - Serious Organised Crime Agency,04/08/2010,Premises,Corporate Services,KIER BUILDING SERVICES,47900,"49,098.60"
Home Office,SOCA - Serious Organised Crime Agency,04/08/2010,Operational and Communications Costs,Corporate Services,OGC BUYING SOLUTIONS,47917,"293,087.01"
Home Office,SOCA - Serious Organised Crime Agency,04/08/2010,Indirect Employee Costs,Corporate Services,CAPITA RESOURCING LTD,47924,"34,554.33"
Home Office,SOCA - Serious Organised Crime Agency,04/08/2010,Transport Costs,Intervention,FOREIGN & COMMONWEALTH OFFICE,47933,"27,868.61"
Home Office,SOCA - Serious Organised Crime Agency,04/08/2010,Transport Costs,Corporate Services,FOREIGN & COMMONWEALTH OFFICE,47933,"16,318.11"
Home Office,SOCA - Serious Organised Crime Agency,05/08/2010,Indirect Employee Costs,Corporate Services,ELIESHA TRAINING LTD,48033,"29,997.75"
Home Office,SOCA - Serious Organised Crime Agency,05/08/2010,Salaries and Allowances -Seconded Officers,CEOP,SURREY POLICE AUTHORITY,48043,"44,039.37"
Home Office,SOCA - Serious Organised Crime Agency,06/08/2010,Premises,Corporate Services,KIER BUILDING SERVICES,48194,"41,301.88"
Home Office,SOCA - Serious Organised Crime Agency,11/08/2010,PFI Contract Charges,Corporate Services,SERCO,48539,"1,906,091.29"
Home Office,SOCA - Serious Organised Crime Agency,11/08/2010,PFI Contract Charges,CEOP,SERCO,48539,"31,028.80"
Home Office,SOCA - Serious Organised Crime Agency,11/08/2010,IT Expenses,Investment Board,SERCO,48539,"72,451.72"
Home Office,SOCA - Serious Organised Crime Agency,11/08/2010,PFI Contract Charges,Investment Board,SERCO,48539,"146,011.88"
Home Office,SOCA - Serious Organised Crime Agency,12/08/2010,Operational and Communications Costs,Corp Finance,DEPT.FOR COMM & LOCAL G,48605,"1,518,612.30"
Home Office,SOCA - Serious Organised Crime Agency,12/08/2010,Property Plant & Equipment,Investment Board,SERCO,48619,"95,649.95"
Home Office,SOCA - Serious Organised Crime Agency,12/08/2010,Professional Services and Fees,Investment Board,DELOITTE MCS,48625,"76,053.64"
Home Office,SOCA - Serious Organised Crime Agency,12/08/2010,Premises,Corporate Services,VALUATION OFFICE AGENCY,48627,"335,579.79"
Home Office,SOCA - Serious Organised Crime Agency,12/08/2010,Premises,Corporate Services,VALUATION OFFICE AGENCY,48629,"151,429.21"
Home Office,SOCA - Serious Organised Crime Agency,12/08/2010,Premises,Corporate Services,DEFENCE BILLS AGENCY,48633,"38,995.31"
Home Office,SOCA - Serious Organised Crime Agency,13/08/2010,Salaries and Allowances -Seconded Officers,Enforcement,SOUTH YORKSHIRE POLICE AUTH.,48683,"180,907.82"
Home Office,SOCA - Serious Organised Crime Agency,16/08/2010,IT Expenses,Investment Board,FCO SERVICES,48809,"45,033.39"
Home Office,SOCA - Serious Organised Crime Agency,16/08/2010,Operational and Communications Costs,Intelligence,COMPSOFT PLC,48835,"28,176.50"
Home Office,SOCA - Serious Organised Crime Agency,16/08/2010,Forensic Fees,Intelligence,FORENSIC SCIENCE SERVICE,48866,"79,876.91"
Home Office,SOCA - Serious Organised Crime Agency,17/08/2010,IT Expenses,Investment Board,FCO SERVICES,48900,"177,080.73"
Home Office,SOCA - Serious Organised Crime Agency,17/08/2010,Property Plant & Equipment,CEOP,FCO SERVICES,48902,"78,137.50"
Home Office,SOCA - Serious Organised Crime Agency,18/08/2010,Premises,Corporate Services,KIER BUILDING SERVICES,49050,"119,829.92"
Home Office,SOCA - Serious Organised Crime Agency,18/08/2010,Property Plant & Equipment,Investment Board,HERMAN MILLER LTD,49228,"64,214.93"
Home Office,SOCA - Serious Organised Crime Agency,18/08/2010,Professional Services and Fees,Investment Board,FIELD FISHER WATERHOUSE LLP,49245,"244,392.77"
Home Office,SOCA - Serious Organised Crime Agency,19/08/2010,Office Equipment & Repairs,Corporate Services,CANON (UK) LTD,49415,"51,884.52"
Home Office,SOCA - Serious Organised Crime Agency,19/08/2010,Forensic Fees,Intelligence,MD5 LTD,49421,"31,396.00"
Home Office,SOCA - Serious Organised Crime Agency,20/08/2010,IT Expenses,Corporate Services,CABLE & WIRELESS COMMS.,49490,"57,310.30"
Home Office,SOCA - Serious Organised Crime Agency,20/08/2010,Office and General Expenses,Corporate Services,OFFICE DEPOT UK LTD,49517,"44,688.65"
Home Office,SOCA - Serious Organised Crime Agency,20/08/2010,Indirect Employee Costs,Corporate Services,CAPITA RESOURCING LTD,49566,"34,554.33"
Home Office,SOCA - Serious Organised Crime Agency,23/08/2010,Operational and Communications Costs,Intelligence,BT GROUP ENG'RING SERVICES,49607,"58,750.00"
Home Office,SOCA - Serious Organised Crime Agency,23/08/2010,IT Expenses,Corporate Services,L-3 COMMUNICATIONS ASA LTD,49658,"28,252.88"
Home Office,SOCA - Serious Organised Crime Agency,23/08/2010,IT Expenses,Corporate Services,L-3 COMMUNICATIONS ASA LTD,49659,"28,252.88"
Home Office,SOCA - Serious Organised Crime Agency,23/08/2010,IT Expenses,Corporate Services,L-3 COMMUNICATIONS ASA LTD,49661,"220,312.50"
Home Office,SOCA - Serious Organised Crime Agency,23/08/2010,IT Expenses,Corporate Services,L-3 COMMUNICATIONS ASA LTD,49662,"220,312.50"
Home Office,SOCA - Serious Organised Crime Agency,24/08/2010,Professional Services and Fees,Corporate Services,CARE FIRST,49714,"26,241.67"
Home Office,SOCA - Serious Organised Crime Agency,24/08/2010,IT Expenses,Corporate Services,SERCO,49720,"92,140.56"
Home Office,SOCA - Serious Organised Crime Agency,24/08/2010,Operational and Communications Costs,Enforcement,SOUTH YORKSHIRE POLICE AUTH.,49732,"1,858.73"
Home Office,SOCA - Serious Organised Crime Agency,24/08/2010,Premises,Enforcement,SOUTH YORKSHIRE POLICE AUTH.,49732,"28,585.09"
Home Office,SOCA - Serious Organised Crime Agency,24/08/2010,Professional Services and Fees,Enforcement,SOUTH YORKSHIRE POLICE AUTH.,49732,"8,657.60"
Home Office,SOCA - Serious Organised Crime Agency,24/08/2010,IT Expenses,Investment Board,CAPITA BUSINESS SERVICES LTD,49803,"30,671.03"
Home Office,SOCA - Serious Organised Crime Agency,25/08/2010,"Accommodation, Subsistence & General Expenses",Intervention,BARCLAYCARD,49843,"46,092.87"
Home Office,SOCA - Serious Organised Crime Agency,25/08/2010,"Accommodation, Subsistence & General Expenses",Enforcement,BARCLAYCARD,49843,"37,718.33"
Home Office,SOCA - Serious Organised Crime Agency,25/08/2010,"Accommodation, Subsistence & General Expenses",Intelligence,BARCLAYCARD,49843,"23,879.67"
Home Office,SOCA - Serious Organised Crime Agency,25/08/2010,"Accommodation, Subsistence & General Expenses",Corporate Services,BARCLAYCARD,49843,"6,849.14"
Home Office,SOCA - Serious Organised Crime Agency,25/08/2010,"Accommodation, Subsistence & General Expenses",Central & Hosted Services,BARCLAYCARD,49843,"1,429.65"
Home Office,SOCA - Serious Organised Crime Agency,25/08/2010,"Accommodation, Subsistence & General Expenses",CEOP,BARCLAYCARD,49843,"1,706.17"
Home Office,SOCA - Serious Organised Crime Agency,25/08/2010,"Accommodation, Subsistence & General Expenses",Investment Board,BARCLAYCARD,49843,385.18
Home Office,SOCA - Serious Organised Crime Agency,25/08/2010,"Accommodation, Subsistence & General Expenses",Projects,BARCLAYCARD,49843,"8,573.16"
Home Office,SOCA - Serious Organised Crime Agency,25/08/2010,Professional Services and Fees,Investment Board,DELOITTE MCS,49846,"43,529.05"
Home Office,SOCA - Serious Organised Crime Agency,25/08/2010,Professional Services and Fees,Investment Board,DELOITTE MCS,49847,"38,183.80"
Home Office,SOCA - Serious Organised Crime Agency,25/08/2010,IT Expenses,Corporate Services,SERCO,49880,"392,245.41"
Home Office,SOCA - Serious Organised Crime Agency,25/08/2010,Professional Services and Fees,Corporate Services,FCO SERVICES,49902,"38,657.50"
Home Office,SOCA - Serious Organised Crime Agency,25/08/2010,Professional Services and Fees,Corporate Services,ATOS ORIGINS,49944,"43,660.77"
Home Office,SOCA - Serious Organised Crime Agency,31/08/2010,Professional Services and Fees,Corporate Services,BADENOCH & CLARK LIMITED,50258,"50,552.66"
Home Office,SOCA - Serious Organised Crime Agency,31/08/2010,IT Expenses,Investment Board,CAPITA BUSINESS SERVICES LTD,50357,"37,482.50"
Home Office,SOCA - Serious Organised Crime Agency,31/08/2010,Professional Services and Fees,Corporate Services,BADENOCH & CLARK LIMITED,50362,"59,346.67"
Home Office,UKBA - UK Borders Agency,03/08/2010,Asylum Provision.Asylum Cont Out Serv,UKBA - UK Borders Agency,NORTH OF ENGLAND REFUGEE SERVICES LTD,1776822,"57,256.00"
Home Office,UKBA - UK Borders Agency,03/08/2010,"Building, Construction Service.Build a new structure (FA)",UKBA - UK Borders Agency,INTERSERVE PROJECT SERVICES LIMITED,1776984,"547,439.55"
Home Office,UKBA - UK Borders Agency,03/08/2010,Defense & Law Enforcement.Police Liaison Officers,UKBA - UK Borders Agency,THE METROPOLITAN POLICE,1775559,"198,466.97"
Home Office,UKBA - UK Borders Agency,03/08/2010,Law Enforcement & safety Equip.Security & Control Equip- PROG,UKBA - UK Borders Agency,HAMPSHIRE CONSTABULARY,1774911,"29,580.00"
Home Office,UKBA - UK Borders Agency,03/08/2010,Politics & Civic Affairs.Human aid & relief Sect 4,UKBA - UK Borders Agency,CLEARSPRINGS MANAGEMENT LTD,1775552,"869,910.28"
Home Office,UKBA - UK Borders Agency,03/08/2010,Politics & Civic Affairs.Human aid & relief Sect 4,UKBA - UK Borders Agency,MANCHESTER CITY COUNCIL,1776933,"632,606.37"
Home Office,UKBA - UK Borders Agency,03/08/2010,Politics & Civic Affairs.Human aid & relief Sect 4,UKBA - UK Borders Agency,HAPPY HOMES UK LTD,1776975,"579,151.34"
Home Office,UKBA - UK Borders Agency,03/08/2010,Politics & Civic Affairs.Human aid & relief Sect 4,UKBA - UK Borders Agency,CLEARSPRINGS MANAGEMENT LTD,1775555,"550,809.44"
Home Office,UKBA - UK Borders Agency,03/08/2010,Politics & Civic Affairs.Human aid & relief Sect 4,UKBA - UK Borders Agency,ANGEL GROUP,1776417,"472,170.76"
Home Office,UKBA - UK Borders Agency,03/08/2010,Politics & Civic Affairs.Human aid & relief Sect 4,UKBA - UK Borders Agency,METROPOLITAN SUPPORT TRUST (EAST MIDLANDS),1777888,"430,004.49"
Home Office,UKBA - UK Borders Agency,03/08/2010,Politics & Civic Affairs.Human aid & relief Sect 4,UKBA - UK Borders Agency,JOMAST PROPERTY AND FINANCE CO LTD,1776474,"408,343.77"
Home Office,UKBA - UK Borders Agency,03/08/2010,Politics & Civic Affairs.Human aid & relief Sect 4,UKBA - UK Borders Agency,CLEARSPRINGS MANAGEMENT LTD,1775545,"404,055.12"
Home Office,UKBA - UK Borders Agency,03/08/2010,Politics & Civic Affairs.Human aid & relief Sect 4,UKBA - UK Borders Agency,ANGEL GROUP,1776415,"195,015.98"
Home Office,UKBA - UK Borders Agency,03/08/2010,Politics & Civic Affairs.Human aid & relief Sect 4,UKBA - UK Borders Agency,CLEARSPRINGS MANAGEMENT LTD,1775547,"185,756.40"
Home Office,UKBA - UK Borders Agency,03/08/2010,Politics & Civic Affairs.Human aid & relief Sect 4,UKBA - UK Borders Agency,CLEARSPRINGS MANAGEMENT LTD,1775514,"178,018.66"
Home Office,UKBA - UK Borders Agency,03/08/2010,Politics & Civic Affairs.Human aid & relief Sect 4,UKBA - UK Borders Agency,ANGEL GROUP,1776411,"116,185.39"
Home Office,UKBA - UK Borders Agency,03/08/2010,"Public Order, Security Service.Detention Services Contracts",UKBA - UK Borders Agency,HARMONDSWORTH DETENTION SERVICES LTD,1776556,"240,210.35"
Home Office,UKBA - UK Borders Agency,03/08/2010,Storage & Mail Services.Messenger & Reception Services,UKBA - UK Borders Agency,WELSH REFUGEE COUNCIL,1759984,"47,672.74"
Home Office,UKBA - UK Borders Agency,03/08/2010,Storage & Mail Services.Messenger & Reception Services,UKBA - UK Borders Agency,NORTH OF ENGLAND REFUGEE SERVICES LTD,1777706,"35,408.15"
Home Office,UKBA - UK Borders Agency,03/08/2010,Asylum Services.Public Expense Removals,UKBA - UK Borders Agency,CARLSON WAGONLIT TRAVEL,1776953,"140,904.21"
Home Office,UKBA - UK Borders Agency,03/08/2010,Asylum Services.Public Expense Removals,UKBA - UK Borders Agency,CARLSON WAGONLIT TRAVEL,1776622,"57,200.00"
Home Office,UKBA - UK Borders Agency,03/08/2010,Asylum Services.Public Expense Removals,UKBA - UK Borders Agency,CARLSON WAGONLIT TRAVEL,1776954,"49,335.49"
Home Office,UKBA - UK Borders Agency,03/08/2010,"Transport, Storage & Mail Serv",UKBA - UK Borders Agency,GOVERNMENT CAR AND DESPATCH AGENCY (GCDA),331048,"29,967.21"
Home Office,UKBA - UK Borders Agency,03/08/2010,Professional & Admin Services.Business admin services,UKBA - UK Borders Agency,DRIVER AND VEHICLE LICENSING AGENCY (DVLA),9300083053,"63,828.40"
Home Office,UKBA - UK Borders Agency,03/08/2010,Professional & Admin Services.Business admin services,UKBA - UK Borders Agency,DRIVER AND VEHICLE LICENSING AGENCY (DVLA),9300083052,"65,778.73"
Home Office,UKBA - UK Borders Agency,03/08/2010,Professional & Admin Services.Business admin services,UKBA - UK Borders Agency,DRIVER AND VEHICLE LICENSING AGENCY (DVLA),9300083051,"432,375.63"
Home Office,UKBA - UK Borders Agency,03/08/2010,Professional & Admin Services.Business admin services,UKBA - UK Borders Agency,DRIVER AND VEHICLE LICENSING AGENCY (DVLA),9300083055,"63,444.96"
Home Office,UKBA - UK Borders Agency,03/08/2010,Professional & Admin Services.Business admin services,UKBA - UK Borders Agency,DRIVER AND VEHICLE LICENSING AGENCY (DVLA),9300083056,"46,823.00"
Home Office,UKBA - UK Borders Agency,04/08/2010,Grant,UKBA - UK Borders Agency,MANNINGHAM HOUSING ASSOCIATION (G),MK569,"56,964.00"
Home Office,UKBA - UK Borders Agency,04/08/2010,Management & Admin Serv.Temp IT N/w Specialists - PROG,UKBA - UK Borders Agency,ADVANTAGE TECHNICAL RESOURCING,1776778,"29,983.06"
Home Office,UKBA - UK Borders Agency,04/08/2010,Professional & Admin Services.Visa Processing Services,UKBA - UK Borders Agency,VF WORLDWIDE HOLDINGS LTD,1771519,"3,653,130.48"
Home Office,UKBA - UK Borders Agency,04/08/2010,Professional Services,UKBA - UK Borders Agency,CROWN SOLICITORS OFFICE,1778231,"80,291.66"
Home Office,UKBA - UK Borders Agency,04/08/2010,Professional Services,UKBA - UK Borders Agency,CROWN SOLICITORS OFFICE,1778226,"30,072.50"
Home Office,UKBA - UK Borders Agency,04/08/2010,Professional Services,UKBA - UK Borders Agency,CROWN SOLICITORS OFFICE,1778255,"25,000.00"
Home Office,UKBA - UK Borders Agency,04/08/2010,Public Order.Jail or prison services,UKBA - UK Borders Agency,METROPOLITAN POLICE,1778449,"62,554.00"
Home Office,UKBA - UK Borders Agency,04/08/2010,Storage & Mail Services.Messenger & Reception Services,UKBA - UK Borders Agency,SIEMENS BUSINESS SERVICES LTD,1756701,"185,122.93"
Home Office,UKBA - UK Borders Agency,04/08/2010,"Transport, Storage & Mail Serv.Mailing, Mail Delivery Service",UKBA - UK Borders Agency,FRANCOTYP-POSTALIA LIMITED,1778802,"40,000.00"
Home Office,UKBA - UK Borders Agency,04/08/2010,Politics & Civic Affairs.,UKBA - UK Borders Agency,AGEF AFGHANISTAN,1778384,"198,750.00"
Home Office,UKBA - UK Borders Agency,04/08/2010,REPATRIATION SERVICES.ESCORT SERVICES,UKBA - UK Borders Agency,IOM INTERNATIONAL ORGANIZATION FOR MIGRATION,1778267,"2,441,652.23"
Home Office,UKBA - UK Borders Agency,04/08/2010,Asylum Services.Public Expense Removals,UKBA - UK Borders Agency,CARLSON WAGONLIT TRAVEL,1778128,"85,465.00"
Home Office,UKBA - UK Borders Agency,04/08/2010,Asylum Services.Public Expense Removals,UKBA - UK Borders Agency,CARLSON WAGONLIT TRAVEL,1778125,"57,200.00"
Home Office,UKBA - UK Borders Agency,04/08/2010,OGD RFT,UKBA - UK Borders Agency,TREASURY SOLICITOR CLIENT MONIES,AH680,"132,731.85"
Home Office,UKBA - UK Borders Agency,05/08/2010,Asylum Provision.Asylum serv Sect4Vouchers,UKBA - UK Borders Agency,SODEXHO PASS LTD,1771306,"307,605.96"
Home Office,UKBA - UK Borders Agency,05/08/2010,Asylum Provision.Asylum serv Sect4Vouchers,UKBA - UK Borders Agency,SODEXHO PASS LTD,1779172,"306,061.81"
Home Office,UKBA - UK Borders Agency,05/08/2010,Grant,UKBA - UK Borders Agency,BRITISH REFUGEE COUNCIL 2 (G),INV0004996,"27,079.80"
Home Office,UKBA - UK Borders Agency,05/08/2010,Politics & Civic Affairs.Displaced pers.assistance,UKBA - UK Borders Agency,SODEXHO PASS LTD,1771480,"1,064,481.65"
Home Office,UKBA - UK Borders Agency,05/08/2010,REPATRIATION SERVICES.ESCORT SERVICES,UKBA - UK Borders Agency,IOM INTERNATIONAL ORGANIZATION FOR MIGRATION,1779234,"342,826.00"
Home Office,UKBA - UK Borders Agency,06/08/2010,Asylum Provision.Asylum Cont Out Serv,UKBA - UK Borders Agency,SCOTTISH REFUGEE COUNCIL ( SCOTLAND ),1779980,"64,134.97"
Home Office,UKBA - UK Borders Agency,06/08/2010,Asylum Provision.Asylum serv Sect4Vouchers,UKBA - UK Borders Agency,SODEXHO PASS LTD,1780110,"49,295.30"
Home Office,UKBA - UK Borders Agency,06/08/2010,IT & Telecoms Components.Computer Equip (FA),UKBA - UK Borders Agency,ATOS ORIGIN IT SERVICES UK LIMITED,1761197,"49,240.73"
Home Office,UKBA - UK Borders Agency,06/08/2010,Politics & Civic Affairs.Displaced pers.assistance,UKBA - UK Borders Agency,SODEXHO PASS LTD,1780106,"245,784.91"
Home Office,UKBA - UK Borders Agency,06/08/2010,Politics & Civic Affairs.Human aid & relief Sect 4,UKBA - UK Borders Agency,NORTHERN IRELAND HOUSING EXEC,1780001,"163,533.85"
Home Office,UKBA - UK Borders Agency,06/08/2010,Professional & Admin Services.Clerical & Admin Staff - PROG,UKBA - UK Borders Agency,NETWORKERS RECRUITMENT SERVICES LTD,1779844,"26,519.75"
Home Office,UKBA - UK Borders Agency,06/08/2010,"Public Order, Security Service.Detention Services Contracts",UKBA - UK Borders Agency,THE GEO GROUP UK LTD,1776956,"583,239.96"
Home Office,UKBA - UK Borders Agency,06/08/2010,"Public Order, Security Service.Detention Services Contracts",UKBA - UK Borders Agency,THE GEO GROUP UK LTD,1777810,"545,295.05"
Home Office,UKBA - UK Borders Agency,06/08/2010,"Public Order, Security Service.Detention Services Contracts",UKBA - UK Borders Agency,THE GEO GROUP UK LTD,1777824,"479,201.66"
Home Office,UKBA - UK Borders Agency,06/08/2010,"Public Order, Security Service.Detention Services Contracts",UKBA - UK Borders Agency,G4S CARE & JUSTICE SERVICES (UK) LTD,1779123,"1,004,263.20"
Home Office,UKBA - UK Borders Agency,06/08/2010,Storage & Mail Services.Messenger & Reception Services,UKBA - UK Borders Agency,SIEMENS BUSINESS SERVICES LTD,1761033,"75,312.37"
Home Office,UKBA - UK Borders Agency,06/08/2010,Storage & Mail Services.Messenger & Reception Services,UKBA - UK Borders Agency,SCOTTISH REFUGEE COUNCIL ( SCOTLAND ),1755529,"46,284.55"
Home Office,UKBA - UK Borders Agency,06/08/2010,"Transport, Storage & Mail Serv.Fuel & Vehicle Supp Serv- PROG",UKBA - UK Borders Agency,ARVAL UK LTD,1779791,"30,279.10"
Home Office,UKBA - UK Borders Agency,06/08/2010,Asylum Services.Public Expense Removals,UKBA - UK Borders Agency,CARLSON WAGONLIT TRAVEL,1778318,"75,657.92"
Home Office,UKBA - UK Borders Agency,09/08/2010,Grant,UKBA - UK Borders Agency,SOUTH WEST REGIONAL CONSORTIUM (G),462992,"25,700.00"
Home Office,UKBA - UK Borders Agency,09/08/2010,Politics & Civic Affairs.Displaced pers.assistance,UKBA - UK Borders Agency,SODEXHO PASS LTD,1779242,"1,055,368.53"
Home Office,UKBA - UK Borders Agency,09/08/2010,Politics & Civic Affairs.Refugee repatriation.serv,UKBA - UK Borders Agency,G4S JUSTICE SERVICES LTD - AIM,1780080,"230,319.42"
Home Office,UKBA - UK Borders Agency,09/08/2010,"Public Order, Security Service.Detention Services Contracts",UKBA - UK Borders Agency,THE GEO GROUP UK LTD,1780842,"39,155.91"
Home Office,UKBA - UK Borders Agency,09/08/2010,"Public Order, Security Service.Detention Services Contracts",UKBA - UK Borders Agency,THE GEO GROUP UK LTD,1780843,"32,215.05"
Home Office,UKBA - UK Borders Agency,09/08/2010,Storage & Mail Services.Messenger & Reception Services,UKBA - UK Borders Agency,NPIA (National Policing Improvement Agency),1757725,"71,816.52"
Home Office,UKBA - UK Borders Agency,10/08/2010,Asylum Provision.Asylum Cont Out Serv,UKBA - UK Borders Agency,LEEDS CITY COUNCIL,1782367,"238,046.00"
Home Office,UKBA - UK Borders Agency,10/08/2010,IT & Telecoms Components.Computer Equip (FA),UKBA - UK Borders Agency,IBM DIRECT UNITED KINGDOM LTD,1773201,"60,567.73"
Home Office,UKBA - UK Borders Agency,10/08/2010,Management & Admin Serv.Temp IT N/w Specialists - PROG,UKBA - UK Borders Agency,TRIBAL CONSULTING LTD,1782888,"26,055.63"
Home Office,UKBA - UK Borders Agency,10/08/2010,Politics & Civic Affairs.Human aid & relief Sect 4,UKBA - UK Borders Agency,NEWCASTLE CITY COUNCIL,1782368,"599,453.49"
Home Office,UKBA - UK Borders Agency,10/08/2010,"Public Order, Security Service.Detention Services Contracts",UKBA - UK Borders Agency,G4S CARE & JUSTICE SERVICES (UK) LTD,1779143,"514,665.92"
Home Office,UKBA - UK Borders Agency,10/08/2010,"Public Order, Security, Safety.Escorting services",UKBA - UK Borders Agency,G4S CARE & JUSTICE SERVICES (UK) LTD,1774892,"53,265.43"
Home Office,UKBA - UK Borders Agency,10/08/2010,Travel & Food & Lodging.Travel facilitation,UKBA - UK Borders Agency,WEST YORKSHIRE PASSENGER TRANSPORT EXECUTIVE (METRO),1775353,"35,712.00"
Home Office,UKBA - UK Borders Agency,10/08/2010,OGD RFT,UKBA - UK Borders Agency,TREASURY SOLICITORS OFFICE,102321,"208,404.73"
Home Office,UKBA - UK Borders Agency,10/08/2010,OGD RFT,UKBA - UK Borders Agency,TREASURY SOLICITORS OFFICE,102320,"36,218.52"
Home Office,UKBA - UK Borders Agency,10/08/2010,OGD RFT,UKBA - UK Borders Agency,TREASURY SOLICITORS OFFICE,102322,"2,490,300.62"
Home Office,UKBA - UK Borders Agency,11/08/2010,Politics & Civic Affairs.Human aid & relief Sect 4,UKBA - UK Borders Agency,GLASGOW CITY COUNCIL,1783131,"793,933.13"
Home Office,UKBA - UK Borders Agency,11/08/2010,Politics & Civic Affairs.Human aid & relief Sect 4,UKBA - UK Borders Agency,LIVERPOOL CITY COUNCIL,1783109,"256,263.66"
Home Office,UKBA - UK Borders Agency,11/08/2010,Storage & Mail Services.Messenger & Reception Services,UKBA - UK Borders Agency,METROPOLITAN SUPPORT TRUST (EAST MIDLANDS),1783215,"35,855.93"
Home Office,UKBA - UK Borders Agency,11/08/2010,"Transport, Storage & Mail Serv.Parking fees - PROG",UKBA - UK Borders Agency,MANCHESTER AIRPORT PLC,1783319,"28,436.79"
Home Office,UKBA - UK Borders Agency,11/08/2010,Asylum Services.Public Expense Removals,UKBA - UK Borders Agency,CARLSON WAGONLIT TRAVEL,1783240,"85,465.00"
Home Office,UKBA - UK Borders Agency,11/08/2010,Asylum Services.Public Expense Removals,UKBA - UK Borders Agency,CARLSON WAGONLIT TRAVEL,1783241,"57,200.00"
Home Office,UKBA - UK Borders Agency,11/08/2010,OGD RFT,UKBA - UK Borders Agency,TREASURY SOLICITOR CLIENT MONIES,AH684,"61,853.73"
Home Office,UKBA - UK Borders Agency,11/08/2010,"Transport, Storage & Mail Serv",UKBA - UK Borders Agency,FCO SERVICES,6021576,"53,455.63"
Home Office,UKBA - UK Borders Agency,12/08/2010,IT & Telecoms Components.Computer Equip  (FA),UKBA - UK Borders Agency,MORPHO UK LTD,1781919,"144,792.59"
Home Office,UKBA - UK Borders Agency,12/08/2010,Politics & Civic Affairs.Human aid & relief Sect 4,UKBA - UK Borders Agency,LEEDS CITY COUNCIL,1785016,"1,089,114.36"
Home Office,UKBA - UK Borders Agency,12/08/2010,"Public Order, Security, Safety.Escorting services",UKBA - UK Borders Agency,G4S CARE & JUSTICE SERVICES (UK) LTD,1779321,"28,953.88"
Home Office,UKBA - UK Borders Agency,12/08/2010,"Public Order, Security, Safety.Escorting services",UKBA - UK Borders Agency,G4S CARE & JUSTICE SERVICES (UK) LTD,1779255,"25,788.14"
Home Office,UKBA - UK Borders Agency,12/08/2010,"Public Order, Security, Safety.Escorting services",UKBA - UK Borders Agency,G4S CARE & JUSTICE SERVICES (UK) LTD,1779318,"25,788.14"
Home Office,UKBA - UK Borders Agency,12/08/2010,REPATRIATION SERVICES.ESCORT SERVICES,UKBA - UK Borders Agency,IOM INTERNATIONAL ORGANIZATION FOR MIGRATION,1784422,"91,775.00"
Home Office,UKBA - UK Borders Agency,13/08/2010,Grant,UKBA - UK Borders Agency,QED-UK (G),467968,"61,423.43"
Home Office,UKBA - UK Borders Agency,13/08/2010,Grant,UKBA - UK Borders Agency,ARBOUR YOUTH CENTRE (G),467108,"25,000.00"
Home Office,UKBA - UK Borders Agency,13/08/2010,Grant,UKBA - UK Borders Agency,SLOUGH BOROUGH COUNCIL (G),467118,"66,946.00"
Home Office,UKBA - UK Borders Agency,13/08/2010,Politics & Civic Affairs.Human aid & relief Sect 4,UKBA - UK Borders Agency,BIRMINGHAM CITY COUNCIL,1786138,"532,287.85"
Home Office,UKBA - UK Borders Agency,13/08/2010,"Public Order, Security, Safety.PORT AUTHORITY DETENTION",UKBA - UK Borders Agency,DOVER HARBOUR BOARD,1785337,"165,052.31"
Home Office,UKBA - UK Borders Agency,13/08/2010,Storage & Mail Services.Messenger & Reception Services,UKBA - UK Borders Agency,REFUGEE COUNCIL,1785309,"139,214.40"
Home Office,UKBA - UK Borders Agency,13/08/2010,Storage & Mail Services.Messenger & Reception Services,UKBA - UK Borders Agency,BIRMINGHAM CITY COUNCIL,1786140,"47,282.17"
Home Office,UKBA - UK Borders Agency,13/08/2010,"Transport, Storage & Mail Serv.Fuel & Vehicle Supp Serv- PROG",UKBA - UK Borders Agency,ARVAL UK LTD,1785273,"29,705.84"
Home Office,UKBA - UK Borders Agency,13/08/2010,Asylum Services.Public Expense Removals,UKBA - UK Borders Agency,CARLSON WAGONLIT TRAVEL,1783824,"156,923.09"
Home Office,UKBA - UK Borders Agency,13/08/2010,Asylum Services.Public Expense Removals,UKBA - UK Borders Agency,CARLSON WAGONLIT TRAVEL,1783825,"110,374.16"
Home Office,UKBA - UK Borders Agency,13/08/2010,Asylum Services.Public Expense Removals,UKBA - UK Borders Agency,CARLSON WAGONLIT TRAVEL,1783823,"69,982.24"
Home Office,UKBA - UK Borders Agency,13/08/2010,Asylum Services.Public Expense Removals,UKBA - UK Borders Agency,CARLSON WAGONLIT TRAVEL,1783826,"37,047.25"
Home Office,UKBA - UK Borders Agency,16/08/2010,Education & Training Services.Training Dev External - ADMN,UKBA - UK Borders Agency,SKILLS FOR JUSTICE,1757081,"49,000.00"
Home Office,UKBA - UK Borders Agency,16/08/2010,Grant,UKBA - UK Borders Agency,PEACEMAKER (G),467972,"27,000.00"
Home Office,UKBA - UK Borders Agency,16/08/2010,Healthcare Services.Healthcare Services - ADMN,UKBA - UK Borders Agency,HEALTH MANAGEMENT LTD,1756734,"64,036.47"
Home Office,UKBA - UK Borders Agency,16/08/2010,IT & Telecoms Components.Computer Equip (FA),UKBA - UK Borders Agency,KRONOS SYSTEMS LTD,1786293,"37,987.77"
Home Office,UKBA - UK Borders Agency,16/08/2010,"Public Order, Security, Safety.Confinement Surveillance",UKBA - UK Borders Agency,SERCO  LTD,1770560,"96,615.17"
Home Office,UKBA - UK Borders Agency,16/08/2010,"Science, Technical & Research.Computer services - PROG",UKBA - UK Borders Agency,ATOS ORIGIN IT SERVICES UK LIMITED,1770737,"52,875.00"
Home Office,UKBA - UK Borders Agency,16/08/2010,Storage & Mail Services.Messenger & Reception Services,UKBA - UK Borders Agency,REFUGEE COUNCIL,1785427,"50,140.48"
Home Office,UKBA - UK Borders Agency,16/08/2010,"Transport, Storage & Mail Serv.Mailing Mail Del Serv - PROG",UKBA - UK Borders Agency,SECURE MAIL SERVICES LTD (SMS),1786175,"29,789.68"
Home Office,UKBA - UK Borders Agency,16/08/2010,"Vehicles, Ships, Airplanes.Motor cars (FA)",UKBA - UK Borders Agency,S MACNEILLIE & SON LTD,1779889,"25,639.68"
Home Office,UKBA - UK Borders Agency,16/08/2010,"Vehicles, Ships, Airplanes.Motor cars (FA)",UKBA - UK Borders Agency,S MACNEILLIE & SON LTD,1779887,"25,639.68"
Home Office,UKBA - UK Borders Agency,16/08/2010,"Vehicles, Ships, Airplanes.Motor cars (FA)",UKBA - UK Borders Agency,S MACNEILLIE & SON LTD,1779884,"25,639.68"
Home Office,UKBA - UK Borders Agency,16/08/2010,"Vehicles, Ships, Airplanes.Motor cars (FA)",UKBA - UK Borders Agency,S MACNEILLIE & SON LTD,1786183,"25,639.68"
Home Office,UKBA - UK Borders Agency,16/08/2010,"Vehicles, Ships, Airplanes.Motor cars (FA)",UKBA - UK Borders Agency,S MACNEILLIE & SON LTD,1779880,"25,639.68"
Home Office,UKBA - UK Borders Agency,16/08/2010,"Vehicles, Ships, Airplanes.Motor cars (FA)",UKBA - UK Borders Agency,S MACNEILLIE & SON LTD,1779873,"25,639.68"
Home Office,UKBA - UK Borders Agency,16/08/2010,Asylum Services.Public Expense Removals,UKBA - UK Borders Agency,CARLSON WAGONLIT TRAVEL,1786827,"93,890.72"
Home Office,UKBA - UK Borders Agency,16/08/2010,Asylum Services.Public Expense Removals,UKBA - UK Borders Agency,CARLSON WAGONLIT TRAVEL,1786829,"60,788.56"
Home Office,UKBA - UK Borders Agency,16/08/2010,Asylum Services.Public Expense Removals,UKBA - UK Borders Agency,CARLSON WAGONLIT TRAVEL,1786833,"33,100.00"
Home Office,UKBA - UK Borders Agency,16/08/2010,OGD RFT,UKBA - UK Borders Agency,TREASURY SOLICITOR CLIENT MONIES,AH692,"384,712.24"
Home Office,UKBA - UK Borders Agency,17/08/2010,Asylum Provision.Asylum Cont Out Serv,UKBA - UK Borders Agency,"REFUGEE ACTION ( REGIONS - NW, SE & SW )",1787922,"69,909.00"
Home Office,UKBA - UK Borders Agency,17/08/2010,Asylum Provision.Asylum Cont Out Serv,UKBA - UK Borders Agency,"REFUGEE ACTION ( REGIONS - NW, SE & SW )",1787395,"53,613.00"
Home Office,UKBA - UK Borders Agency,17/08/2010,Asylum Provision.Asylum Cont Out Serv,UKBA - UK Borders Agency,"REFUGEE ACTION ( REGIONS - NW, SE & SW )",1787396,"42,769.00"
Home Office,UKBA - UK Borders Agency,17/08/2010,Asylum Provision.Asylum serv Sect4Vouchers,UKBA - UK Borders Agency,SODEXHO PASS LTD,1787332,"280,185.78"
Home Office,UKBA - UK Borders Agency,17/08/2010,Grant,UKBA - UK Borders Agency,OISC (G),458776,"344,750.00"
Home Office,UKBA - UK Borders Agency,17/08/2010,IT & Telecoms Components.Computer Equip (FA),UKBA - UK Borders Agency,IBM DIRECT UNITED KINGDOM LTD,1786389,"191,312.33"
Home Office,UKBA - UK Borders Agency,17/08/2010,Politics & Civic Affairs.Displaced pers.assistance,UKBA - UK Borders Agency,SODEXHO PASS LTD,1787291,"1,053,563.81"
Home Office,UKBA - UK Borders Agency,17/08/2010,"Public Order, Security, Safety.Domestic Escort Services",UKBA - UK Borders Agency,G4S CARE & JUSTICE SERVICES (UK) LTD,1774889,"1,537,876.84"
Home Office,UKBA - UK Borders Agency,18/08/2010,Defense & Law Enforcement.Police Liaison Officers,UKBA - UK Borders Agency,GREATER MANCHESTER POLICE,1788891,"30,156.98"
Home Office,UKBA - UK Borders Agency,18/08/2010,Defense & Law Enforcement.Police Liaison Officers,UKBA - UK Borders Agency,HUMBERSIDE POLICE AUTHORITY,1788877,"26,582.96"
Home Office,UKBA - UK Borders Agency,18/08/2010,IT & Telecoms Components.Computer Equip (FA),UKBA - UK Borders Agency,IBM DIRECT UNITED KINGDOM LTD,1786388,"1,465,482.33"
Home Office,UKBA - UK Borders Agency,18/08/2010,IT & Telecoms Components.Computer Equip (FA),UKBA - UK Borders Agency,IBM DIRECT UNITED KINGDOM LTD,1773133,"593,793.30"
Home Office,UKBA - UK Borders Agency,18/08/2010,IT & Telecoms Components.Computer Equip (FA),UKBA - UK Borders Agency,IBM DIRECT UNITED KINGDOM LTD,1779326,"56,522.20"
Home Office,UKBA - UK Borders Agency,18/08/2010,IT & Telecoms Components.Computer Equip (FA),UKBA - UK Borders Agency,IBM DIRECT UNITED KINGDOM LTD,1773154,"38,125.94"
Home Office,UKBA - UK Borders Agency,18/08/2010,IT & Telecoms Components.Computer Equip (FA),UKBA - UK Borders Agency,IBM DIRECT UNITED KINGDOM LTD,1786386,"30,500.76"
Home Office,UKBA - UK Borders Agency,18/08/2010,"OGD's, Councils & Police Authorities",UKBA - UK Borders Agency,BIRMINGHAM CITY COUNCIL,1787959,"46,240.00"
Home Office,UKBA - UK Borders Agency,18/08/2010,"OGD's, Councils & Police Authorities",UKBA - UK Borders Agency,NEWHAM REGISTER OFFICE,1788349,"31,840.00"
Home Office,UKBA - UK Borders Agency,18/08/2010,"OGD's, Councils & Police Authorities",UKBA - UK Borders Agency,BRADFORD METROPOLITAN DISTRICT,1787970,"26,640.00"
Home Office,UKBA - UK Borders Agency,18/08/2010,"OGD's, Councils & Police Authorities",UKBA - UK Borders Agency,BRENT REGISTER OFFICE,1787973,"25,840.00"
Home Office,UKBA - UK Borders Agency,18/08/2010,Politics & Civic Affairs.REFUGEE PROG. SECT 95,UKBA - UK Borders Agency,CITY AND COUNTY OF SWANSEA,1783019,"65,178.80"
Home Office,UKBA - UK Borders Agency,18/08/2010,Professional & Admin Services.Visa Processing Services,UKBA - UK Borders Agency,VF WORLDWIDE HOLDINGS LTD,1788070,"1,767,909.99"
Home Office,UKBA - UK Borders Agency,18/08/2010,"Public Order, Security, Safety.Domestic Escort Services",UKBA - UK Borders Agency,G4S CARE & JUSTICE SERVICES (UK) LTD,1774893,"1,489,756.40"
Home Office,UKBA - UK Borders Agency,18/08/2010,"Public Order, Security, Safety.Security Guard Services - PROG",UKBA - UK Borders Agency,OCS GROUP UK LTD,1779841,"79,661.17"
Home Office,UKBA - UK Borders Agency,18/08/2010,"Public Order, Security, Safety.Security Guard Services - PROG",UKBA - UK Borders Agency,OCS GROUP UK LTD,1776919,"76,708.64"
Home Office,UKBA - UK Borders Agency,18/08/2010,Management & Admin Serv,UKBA - UK Borders Agency,BRITISH SCHOOL OF PARIS,F2561,"41,924.00"
Home Office,UKBA - UK Borders Agency,18/08/2010,Management & Admin Serv,UKBA - UK Borders Agency,BRITISH SCHOOL OF PARIS,F2560,"56,979.00"
Home Office,UKBA - UK Borders Agency,18/08/2010,Management & Admin Serv,UKBA - UK Borders Agency,BRITISH SCHOOL OF PARIS,F2559-1,"45,166.00"
Home Office,UKBA - UK Borders Agency,19/08/2010,Defense & Law Enforcement.Police Liaison Officers,UKBA - UK Borders Agency,STRATHCLYDE POLICE,1788968,"41,670.87"
Home Office,UKBA - UK Borders Agency,19/08/2010,Politics & Civic Affairs.Human aid & relief Sect 4,UKBA - UK Borders Agency,YMCA GLASGOW,1789045,"495,061.42"
Home Office,UKBA - UK Borders Agency,19/08/2010,Storage & Mail Services.Messenger & Reception Services,UKBA - UK Borders Agency,IDENTITY & PASSPORTS SERVICE,1788255,"32,826.30"
Home Office,UKBA - UK Borders Agency,19/08/2010,Storage & Mail Services.Messenger & Reception Services,UKBA - UK Borders Agency,USCIS (DEPT OF HOMELAND SECURITY),1789685,"900,000.00"
Home Office,UKBA - UK Borders Agency,20/08/2010,Asylum Provision.Asylum serv Sect4Vouchers,UKBA - UK Borders Agency,SODEXHO PASS LTD,1789958,"290,070.73"
Home Office,UKBA - UK Borders Agency,20/08/2010,"Building, Construction Service.Refurbishment (FA)",UKBA - UK Borders Agency,THE GEO GROUP UK LTD,1783929,"114,838.63"
Home Office,UKBA - UK Borders Agency,20/08/2010,Politics & Civic Affairs.Displaced pers.assistance,UKBA - UK Borders Agency,SODEXHO PASS LTD,1790210,"1,048,665.72"
Home Office,UKBA - UK Borders Agency,20/08/2010,"Public Order, Security Service.Detention Services Contracts",UKBA - UK Borders Agency,G4S CARE & JUSTICE SERVICES (UK) LTD,1779179,"1,247,505.97"
Home Office,UKBA - UK Borders Agency,20/08/2010,"Public Order, Security Service.Detention Services Contracts",UKBA - UK Borders Agency,G4S CARE & JUSTICE SERVICES (UK) LTD,1779171,"29,443.23"
Home Office,UKBA - UK Borders Agency,20/08/2010,"Public Order, Security Service.Detention Services Contracts",UKBA - UK Borders Agency,G4S CARE & JUSTICE SERVICES (UK) LTD,1779191,"464,468.10"
Home Office,UKBA - UK Borders Agency,20/08/2010,"Science, Technical & Research.Computer services - PROG",UKBA - UK Borders Agency,ATOS ORIGIN IT SERVICES UK LIMITED,1773604,"200,059.03"
Home Office,UKBA - UK Borders Agency,20/08/2010,"Transport, Storage & Mail Serv.Fuel & Vehicle Supp Serv- PROG",UKBA - UK Borders Agency,ARVAL UK LTD,1789833,"26,849.29"
Home Office,UKBA - UK Borders Agency,23/08/2010,IT & Telecommunications.IT & Telecommunications,UKBA - UK Borders Agency,FUJITSU SERVICES (ALCEDO) LTD,1774002,"130,738.20"
Home Office,UKBA - UK Borders Agency,23/08/2010,Professional & Admin Services.Corp Business IT Serv - PROG,UKBA - UK Borders Agency,SERCO  LTD,1774839,"296,598.20"
Home Office,UKBA - UK Borders Agency,23/08/2010,"Public Order, Security, Safety.PORT AUTHORITY DETENTION",UKBA - UK Borders Agency,HARWICH INTL PORT LTD,1790682,"35,079.11"
Home Office,UKBA - UK Borders Agency,23/08/2010,Travel & Food & Lodging.Hotels & motels & inns,UKBA - UK Borders Agency,REFUGEE COUNCIL,1771737,"29,322.75"
Home Office,UKBA - UK Borders Agency,23/08/2010,OGD RFT,UKBA - UK Borders Agency,DEPARTMENT FOR WORK AND PENSIONS ACCOUNTING SHARED SERVICES,194,"68,393.00"
Home Office,UKBA - UK Borders Agency,23/08/2010,OGD RFT,UKBA - UK Borders Agency,DEPARTMENT FOR WORK AND PENSIONS ACCOUNTING SHARED SERVICES,195,"73,242.00"
Home Office,UKBA - UK Borders Agency,23/08/2010,OGD RFT,UKBA - UK Borders Agency,TREASURY SOLICITOR CLIENT MONIES,203606,"58,935.31"
Home Office,UKBA - UK Borders Agency,24/08/2010,Grant,UKBA - UK Borders Agency,LONDON BOROUGH OF GREENWICH 1 (G),471948,"32,785.71"
Home Office,UKBA - UK Borders Agency,24/08/2010,Grant,UKBA - UK Borders Agency,LONDON BOROUGH TOWER HAMLETS (G),471948,"38,128.57"
Home Office,UKBA - UK Borders Agency,24/08/2010,Grant,UKBA - UK Borders Agency,LB OF BRENT CHILDRENS DIRECTORATE,471948,"42,742.86"
Home Office,UKBA - UK Borders Agency,24/08/2010,Grant,UKBA - UK Borders Agency,LONDON BOROUGH  WALTHAM FOREST (G),471948,"49,842.86"
Home Office,UKBA - UK Borders Agency,24/08/2010,Grant,UKBA - UK Borders Agency,CAMBRIDGESHIRE COUNTY COUNCIL (G),471948,"50,300.00"
Home Office,UKBA - UK Borders Agency,24/08/2010,Grant,UKBA - UK Borders Agency,WESTMINSTER CITY COUNCIL (G),471948,"56,271.43"
Home Office,UKBA - UK Borders Agency,24/08/2010,Grant,UKBA - UK Borders Agency,SHEFFIELD CITY COUNCIL 1 (G),471948,"61,642.86"
Home Office,UKBA - UK Borders Agency,24/08/2010,Grant,UKBA - UK Borders Agency,LONDON BOROUGH OF KENSINGTON & CHE,471948,"63,971.43"
Home Office,UKBA - UK Borders Agency,24/08/2010,Grant,UKBA - UK Borders Agency,LONDON BOROUGH OF HARROW 1 (G),474268,"74,414.29"
Home Office,UKBA - UK Borders Agency,24/08/2010,Grant,UKBA - UK Borders Agency,WEST SUSSEX COUNTY COUNCIL 1 (G),471948,"94,000.00"
Home Office,UKBA - UK Borders Agency,24/08/2010,Grant,UKBA - UK Borders Agency,LEEDS CITY COUNCIL 1 (G),471948,"117,914.29"
Home Office,UKBA - UK Borders Agency,24/08/2010,Grant,UKBA - UK Borders Agency,LIVERPOOL CITY COUNCIL 1 (G),471948,"192,071.43"
Home Office,UKBA - UK Borders Agency,24/08/2010,Grant,UKBA - UK Borders Agency,LONDON BOROUGH OF WANDSWORTH (G),473710,"47,877.63"
Home Office,UKBA - UK Borders Agency,24/08/2010,Grant,UKBA - UK Borders Agency,READING BOROUGH COUNCIL 1 (G),473710,"70,706.61"
Home Office,UKBA - UK Borders Agency,24/08/2010,Grant,UKBA - UK Borders Agency,WILTSHIRE COUNTY COUNCIL 1 (G),473710,"81,189.87"
Home Office,UKBA - UK Borders Agency,24/08/2010,Grant,UKBA - UK Borders Agency,LONDON BOROUGH OF HAMMERSMITH & FU,473710,"159,827.15"
Home Office,UKBA - UK Borders Agency,24/08/2010,Grant,UKBA - UK Borders Agency,LINCOLNSHIRE COUNTY COUNCIL 1 (G),473710,"212,622.39"
Home Office,UKBA - UK Borders Agency,24/08/2010,Grant,UKBA - UK Borders Agency,LONDON BOROUGH OF LAMBETH 1 (G),473710,"225,119.03"
Home Office,UKBA - UK Borders Agency,24/08/2010,Grant,UKBA - UK Borders Agency,LONDON BOROUGH OF HILLINGDON 1 (G),7480752,"120,900.00"
Home Office,UKBA - UK Borders Agency,24/08/2010,Professional & Admin Services.Clerical & Admin Staff - PROG,UKBA - UK Borders Agency,TRIBAL CONSULTING LTD,1790545,"30,050.63"
Home Office,UKBA - UK Borders Agency,24/08/2010,"Science, Technical & Research.Computer services - PROG",UKBA - UK Borders Agency,ATOS ORIGIN IT SERVICES UK LIMITED,1776669,"25,465.78"
Home Office,UKBA - UK Borders Agency,24/08/2010,Storage & Mail Services.Messenger & Reception Services,UKBA - UK Borders Agency,NPIA (National Policing Improvement Agency),1791896,"75,317.76"
Home Office,UKBA - UK Borders Agency,24/08/2010,"Vehicles, Ships, Airplanes.Motor cars (FA)",UKBA - UK Borders Agency,S MACNEILLIE & SON LTD,1792430,"25,639.68"
Home Office,UKBA - UK Borders Agency,24/08/2010,"Vehicles, Ships, Airplanes.Motor cars (FA)",UKBA - UK Borders Agency,S MACNEILLIE & SON LTD,1792435,"25,639.68"
Home Office,UKBA - UK Borders Agency,24/08/2010,Asylum Services.Public Expense Removals,UKBA - UK Borders Agency,CARLSON WAGONLIT TRAVEL,1789675,"172,400.00"
Home Office,UKBA - UK Borders Agency,24/08/2010,Asylum Services.Public Expense Removals,UKBA - UK Borders Agency,CARLSON WAGONLIT TRAVEL,1791646,"138,316.96"
Home Office,UKBA - UK Borders Agency,24/08/2010,Asylum Services.Public Expense Removals,UKBA - UK Borders Agency,CARLSON WAGONLIT TRAVEL,1791640,"133,894.20"
Home Office,UKBA - UK Borders Agency,24/08/2010,Asylum Services.Public Expense Removals,UKBA - UK Borders Agency,CARLSON WAGONLIT TRAVEL,1786839,"133,321.39"
Home Office,UKBA - UK Borders Agency,24/08/2010,Asylum Services.Public Expense Removals,UKBA - UK Borders Agency,CARLSON WAGONLIT TRAVEL,1791642,"113,078.96"
Home Office,UKBA - UK Borders Agency,24/08/2010,Asylum Services.Public Expense Removals,UKBA - UK Borders Agency,CARLSON WAGONLIT TRAVEL,1787234,"87,844.41"
Home Office,UKBA - UK Borders Agency,24/08/2010,Asylum Services.Public Expense Removals,UKBA - UK Borders Agency,CARLSON WAGONLIT TRAVEL,1787236,"60,492.53"
Home Office,UKBA - UK Borders Agency,24/08/2010,Asylum Services.Public Expense Removals,UKBA - UK Borders Agency,CARLSON WAGONLIT TRAVEL,1791634,"56,721.95"
Home Office,UKBA - UK Borders Agency,24/08/2010,Asylum Services.Public Expense Removals,UKBA - UK Borders Agency,CARLSON WAGONLIT TRAVEL,1791648,"53,640.54"
Home Office,UKBA - UK Borders Agency,24/08/2010,"IT, Broadcasting & Telecomms",UKBA - UK Borders Agency,FCO SERVICES,6021825,"2,537,862.69"
Home Office,UKBA - UK Borders Agency,25/08/2010,Asylum Provision.Asylum Cont Out Serv,UKBA - UK Borders Agency,WELSH REFUGEE COUNCIL,1792717,"86,622.20"
Home Office,UKBA - UK Borders Agency,25/08/2010,Asylum Provision.Asylum serv Sect4Vouchers,UKBA - UK Borders Agency,SODEXHO PASS LTD,1792683,"274,839.14"
Home Office,UKBA - UK Borders Agency,25/08/2010,Financial & Insurance Services.Banking & Monetary Serv - PROG,UKBA - UK Borders Agency,STREAMLINE,1781960,"26,571.75"
Home Office,UKBA - UK Borders Agency,25/08/2010,Politics & Civic Affairs.Displaced pers.assistance,UKBA - UK Borders Agency,SODEXHO PASS LTD,1792745,"1,022,961.78"
Home Office,UKBA - UK Borders Agency,25/08/2010,Professional & Admin Services.Consultancy - Advice - PROG,UKBA - UK Borders Agency,TRIBAL HELM CORPORATION LTD,1792699,"32,767.17"
Home Office,UKBA - UK Borders Agency,25/08/2010,"Transport, Storage & Mail Serv.Visa stock",UKBA - UK Borders Agency,3M SECURITY PRINTING & SYSTEMS LTD,1780899,"107,991.90"
Home Office,UKBA - UK Borders Agency,25/08/2010,"Transport, Storage & Mail Serv.Visa stock",UKBA - UK Borders Agency,3M SECURITY PRINTING & SYSTEMS LTD,1731306,"53,995.95"
Home Office,UKBA - UK Borders Agency,25/08/2010,"Transport, Storage & Mail Serv.Visa stock",UKBA - UK Borders Agency,3M SECURITY PRINTING & SYSTEMS LTD,1785935,"51,257.02"
Home Office,UKBA - UK Borders Agency,25/08/2010,"Transport, Storage & Mail Serv.Visa stock",UKBA - UK Borders Agency,3M SECURITY PRINTING & SYSTEMS LTD,1731303,"37,562.40"
Home Office,UKBA - UK Borders Agency,25/08/2010,"Transport, Storage & Mail Serv.Visa stock",UKBA - UK Borders Agency,3M SECURITY PRINTING & SYSTEMS LTD,1781564,"37,562.40"
Home Office,UKBA - UK Borders Agency,25/08/2010,"Transport, Storage & Mail Serv.Visa stock",UKBA - UK Borders Agency,3M SECURITY PRINTING & SYSTEMS LTD,1780900,"26,395.20"
Home Office,UKBA - UK Borders Agency,25/08/2010,"Transport, Storage & Mail Serv.Visa stock",UKBA - UK Borders Agency,3M SECURITY PRINTING & SYSTEMS LTD,1785936,"25,887.60"
Home Office,UKBA - UK Borders Agency,25/08/2010,Politics & Civic Affairs.Human aid & relief Sect 4,UKBA - UK Borders Agency,CARDIFF COUNTY COUNCIL,XBASY124/1,"370,607.42"
Home Office,UKBA - UK Borders Agency,26/08/2010,Grant,UKBA - UK Borders Agency,TAMESIDE & GLOSSOP PCT (G),I0008180,"30,488.97"
Home Office,UKBA - UK Borders Agency,26/08/2010,Grant,UKBA - UK Borders Agency,ACTION IN COMMUNITIES (G),UBA/WP/033,"33,120.00"
Home Office,UKBA - UK Borders Agency,26/08/2010,Storage & Mail Services.Messenger & Reception Services,UKBA - UK Borders Agency,SIEMENS BUSINESS SERVICES LTD,1779413,"196,891.72"
Home Office,UKBA - UK Borders Agency,26/08/2010,OGD RFT,UKBA - UK Borders Agency,TREASURY SOLICITOR CLIENT MONIES,AH696,"276,120.27"
Home Office,UKBA - UK Borders Agency,26/08/2010,OGD RFT,UKBA - UK Borders Agency,TREASURY SOLICITOR CLIENT MONIES,AH695,"186,858.94"
Home Office,UKBA - UK Borders Agency,27/08/2010,IT & Telecoms Components.Computer Equip (FA),UKBA - UK Borders Agency,SERCO  LTD,1776978,"188,734.93"
Home Office,UKBA - UK Borders Agency,27/08/2010,IT & Telecoms Components.Computer Equip (FA),UKBA - UK Borders Agency,SERCO  LTD,1776982,"69,836.02"
Home Office,UKBA - UK Borders Agency,27/08/2010,IT & Telecoms Components.Computer Equip (FA),UKBA - UK Borders Agency,KRONOS SYSTEMS LTD,1794519,"43,291.72"
Home Office,UKBA - UK Borders Agency,27/08/2010,IT & Telecoms Components.Computer Equip (FA),UKBA - UK Borders Agency,KRONOS SYSTEMS LTD,1794521,"37,629.42"
Home Office,UKBA - UK Borders Agency,27/08/2010,"IT, Broadcasting & Telecomms.Sirius - Other Services - ADMN",UKBA - UK Borders Agency,FUJITSU SERVICES (ALCEDO) LTD,1778411,"60,917.94"
Home Office,UKBA - UK Borders Agency,27/08/2010,"Publishing & Media Design Serv.Print, engrave & photocopy",UKBA - UK Borders Agency,3M SECURITY PRINTING & SYSTEMS LTD,1773841,"205,507.50"
Home Office,UKBA - UK Borders Agency,27/08/2010,Storage & Mail Services.Messenger & Reception Services,UKBA - UK Borders Agency,BRADFORD METROPOLITAN DISTRICT,1795075,"33,820.30"
Home Office,UKBA - UK Borders Agency,31/08/2010,Asylum Provision.Asylum Cont Out Serv,UKBA - UK Borders Agency,REFUGEE COUNCIL,1795810,"317,500.00"
Home Office,UKBA - UK Borders Agency,31/08/2010,Asylum Provision.Asylum Cont Out Serv,UKBA - UK Borders Agency,REFUGEE COUNCIL,1795812,"69,829.00"
Home Office,UKBA - UK Borders Agency,31/08/2010,Defense & Law Enforcement.Police Liaison Officers,UKBA - UK Borders Agency,THE METROPOLITAN POLICE,1796206,"288,569.00"
Home Office,UKBA - UK Borders Agency,31/08/2010,Defense & Law Enforcement.Police Liaison Officers,UKBA - UK Borders Agency,LEICESTERSHIRE CONSTABULARY,1795795,"30,216.21"
Home Office,UKBA - UK Borders Agency,31/08/2010,Grant,UKBA - UK Borders Agency,NEWHAM COLLEGE OF FURTHER EDUCATIO,485420,"249,950.00"
Home Office,UKBA - UK Borders Agency,31/08/2010,IT & Telecoms Components.Computer Equip (FA),UKBA - UK Borders Agency,SPECIALIST COMPUTER CENTRES PLC,1777988,"141,542.85"
Home Office,UKBA - UK Borders Agency,31/08/2010,Politics & Civic Affairs.Human aid & relief Sect 4,UKBA - UK Borders Agency,CLEARSPRINGS MANAGEMENT LTD,1796185,"823,560.38"
Home Office,UKBA - UK Borders Agency,31/08/2010,Politics & Civic Affairs.Human aid & relief Sect 4,UKBA - UK Borders Agency,PRIORITY PROPERTIES NORTH WEST,1795486,"590,392.16"
Home Office,UKBA - UK Borders Agency,31/08/2010,Politics & Civic Affairs.Human aid & relief Sect 4,UKBA - UK Borders Agency,CLEARSPRINGS MANAGEMENT LTD,1796173,"506,348.01"
Home Office,UKBA - UK Borders Agency,31/08/2010,Politics & Civic Affairs.Human aid & relief Sect 4,UKBA - UK Borders Agency,YMCA GLASGOW,1796208,"474,992.34"
Home Office,UKBA - UK Borders Agency,31/08/2010,Politics & Civic Affairs.Human aid & relief Sect 4,UKBA - UK Borders Agency,JOMAST PROPERTY AND FINANCE CO LTD,1796141,"390,189.10"
Home Office,UKBA - UK Borders Agency,31/08/2010,Politics & Civic Affairs.Human aid & relief Sect 4,UKBA - UK Borders Agency,CLEARSPRINGS MANAGEMENT LTD,1796176,"372,312.92"
Home Office,UKBA - UK Borders Agency,31/08/2010,Politics & Civic Affairs.Human aid & relief Sect 4,UKBA - UK Borders Agency,PRIORITY PROPERTIES NORTH WEST,1795489,"359,848.61"
Home Office,UKBA - UK Borders Agency,31/08/2010,Politics & Civic Affairs.Human aid & relief Sect 4,UKBA - UK Borders Agency,PRIORITY PROPERTIES NORTH WEST,1795488,"262,633.92"
Home Office,UKBA - UK Borders Agency,31/08/2010,Politics & Civic Affairs.Human aid & relief Sect 4,UKBA - UK Borders Agency,LIVERPOOL CITY COUNCIL,1796264,"259,230.30"
Home Office,UKBA - UK Borders Agency,31/08/2010,Politics & Civic Affairs.Human aid & relief Sect 4,UKBA - UK Borders Agency,PRIORITY PROPERTIES NORTH WEST,1795487,"183,429.64"
Home Office,UKBA - UK Borders Agency,31/08/2010,Politics & Civic Affairs.Human aid & relief Sect 4,UKBA - UK Borders Agency,CLEARSPRINGS MANAGEMENT LTD,1796183,"169,679.57"
Home Office,UKBA - UK Borders Agency,31/08/2010,"Public Order, Security Service.Detention Services Contracts",UKBA - UK Borders Agency,SERCO  LTD,1780844,"897,746.31"
Home Office,UKBA - UK Borders Agency,31/08/2010,"Public Order, Security Service.Detention Services Contracts",UKBA - UK Borders Agency,SERCO  LTD,1781602,"46,268.57"
Home Office,UKBA - UK Borders Agency,31/08/2010,"Public Order, Security Service.Detention Services Contracts",UKBA - UK Borders Agency,SERCO  LTD,1780846,"2,266,845.49"
Home Office,UKBA - UK Borders Agency,31/08/2010,Storage & Mail Services.Messenger & Reception Services,UKBA - UK Borders Agency,REFUGEE COUNCIL,1795806,"35,747.25"
Home Office,UKBA - UK Borders Agency,31/08/2010,Asylum Services.Public Expense Removals,UKBA - UK Borders Agency,CARLSON WAGONLIT TRAVEL,1795548,"178,966.39"
Home Office,UKBA - UK Borders Agency,31/08/2010,Asylum Services.Public Expense Removals,UKBA - UK Borders Agency,CARLSON WAGONLIT TRAVEL,1796044,"97,095.21"
Home Office,UKBA - UK Borders Agency,31/08/2010,Asylum Services.Public Expense Removals,UKBA - UK Borders Agency,CARLSON WAGONLIT TRAVEL,1795551,"81,243.27"
Home Office,UKBA - UK Borders Agency,31/08/2010,"Transport, Storage & Mail Serv",UKBA - UK Borders Agency,FCO SERVICES,6021897,"76,181.01"
Home Office,UKBA - UK Borders Agency,31/08/2010,OGD RFT,UKBA - UK Borders Agency,TREASURY SOLICITOR CLIENT MONIES,AH701,"101,526.80"
Home Office,UKBA - UK Borders Agency,31/08/2010,OGD RFT,UKBA - UK Borders Agency,OSAG - OFFICE OF THE ADVOCATE GENERAL,95006962,"96,675.48"
